﻿ACC.Account Name,FIN.Net Transaction Amount,FIN.Posting Date,MCH.Merchant Name - Original,FIN.Expense Description,MCH.MCC Description,ACC.Reports To Intermediate Level 1 Name Line 1
REDACTED,130.8,01/10/2014,BIGDUG LIMITED,Tapered mobile truck 200 litre Blue,DIRECT MARKETING-CATALOG MERCHANTS,FIRE
REDACTED,19.89,01/10/2014,FACEBOOK 6CBFP6WUD2,recruitment advertising. re charged to cust,ADVERTISING SERVICES,RESOURCE MANAGEMENT
REDACTED,101.59,01/10/2014,ANGLIATOOLCENTRE,Drill driver set replacement,"BUILDING MATERIALS, LUMBER STORES",E&T
REDACTED,26.32,01/10/2014,HUNSTANTON,Activity for Looked After Children,TOURIST ATTRACTIONS AND EXHIBITS,CYP
REDACTED,23.38,01/10/2014,SAINSBURYS 0411,food and drink for sessions,"GROCERY STORES, SUPERMARKETS",CYP
REDACTED,19.92,01/10/2014,FACEBK  EJE8R62ET2,CS/Police Facebook Ad campaign Rape Time to Stop,ADVERTISING SERVICES,PUBLIC PROTECTION
REDACTED,215.83,01/10/2014,TURNERS(IPSWICH),"20,000 service to EA13 ELC - FDS CAR",AUTOMOTIVE SERVICE SHOPS,FIRE
REDACTED,708.92,01/10/2014,ARGOS RETAIL GROUP,Furntiture and Equipment Grant 131087,DISCOUNT STORES,ACS
REDACTED,-20.36,01/10/2014,Amazon  Mktplce EU-UK,Looked After Children - cancelled lost in post,BOOK STORES,CYP
REDACTED,215.83,01/10/2014,TURNERS(IPSWICH),"20,000 MILE SERVICE TO EA13 ONT -FDS CAR",AUTOMOTIVE SERVICE SHOPS,FIRE
REDACTED,68.85,01/10/2014,ANCHOR,PPE Clothing,MEN'S AND WOMEN'S CLOTHING STORES,E&T
REDACTED,108.33,02/10/2014,ACTION ON HEARING LOSS,baby alarm system for looked after child 059GS988/,ELECTRONIC SALES,CYP
REDACTED,17.03,02/10/2014,B&Q,Materials for XXXXX. Beading and wood filler.,"BUILDING MATERIALS, LUMBER STORES",FIRE
REDACTED,200,02/10/2014,TURNER TOOL HIRE,Tools Rental  inculding desposit,"EQUIPMENT RENTAL&LEASING SVS, FURNTURE/TOOL RENTAL",E&T
REDACTED,184.69,02/10/2014,CORINTHIA MARINA,Hotel in Malta for ADCO meeting,"LODGING-HOTELS,MOTELS,RESORTS-NOT CLASSIFIED",PUBLIC PROTECTION
REDACTED,54,02/10/2014,THURLOW NUNN STANDEN L,Socket Set x 1,HARDWARE STORES,E&T
REDACTED,14.99,02/10/2014,ARGOS LTD,USB portable speakers - XXXXX,DISCOUNT STORES,ACS
REDACTED,544,02/10/2014,NAMETAG IT,New DEbris Glove Labelling and Asset Tagging,FAMILY CLOTHING STORES,FIRE
REDACTED,19.99,02/10/2014,FACEBOOK HK9DR6EVD2,recruitment advertising. re charged to cust,ADVERTISING SERVICES,RESOURCE MANAGEMENT
REDACTED,18.5,02/10/2014,GRO HM PASSPORT OFFICE,birth certs. x 2 059GS945/10,GOVERNMENT SERVICES-NOT ELSEWHERE CLASSIFIED,CYP
REDACTED,43.5,02/10/2014,Amazon  Mktplce EU-UK,Looked After Children - Boys Shoes,BOOK STORES,CYP
REDACTED,-9.25,02/10/2014,GRO HM PASSPORT OFFICE,GRO Refund for Birth Certificate ref 059GS957/6,GOVERNMENT SERVICES-NOT ELSEWHERE CLASSIFIED,CYP
REDACTED,36.96,02/10/2014,ARGOS RETAIL GROUP,Furniture and Equipment Grant 131087,DISCOUNT STORES,ACS
REDACTED,31.59,02/10/2014,ESEDIRECT.CO.UK,stencils for stores line marking,"OFFICE, SCHOOL SUPPLY, AND STATIONERY STORES",FIRE
REDACTED,19.49,02/10/2014,Amazon  Mktplce EU-UK,Laptop bag on wheels for team member with bad back,BOOK STORES,PUBLIC PROTECTION
REDACTED,165,02/10/2014,PARENTPAY.COM&PAY24-7.,LAC - School meals - 1 term - 2 children,"COLLEGES, UNIV, PRO SCHOOLS, JUNIOR COLLEGES",CYP
REDACTED,14.15,02/10/2014,HALFORDS 0883,"Broadband Bus scraper, triangle & hi vis vest",BICYCLE SHOPS-SALES AND SERVICE,ACS
REDACTED,161.16,02/10/2014,WWW.CIPS.ORG,558/14 - CIPS membership for XXXXX,"ORGANIZATIONS, MEMBERSHIP-NOT ELSEWHERE CLASSIFIED",RESOURCE MANAGEMENT
REDACTED,20.2,02/10/2014,FACEBK  J4YFN66ET2,CS/Police Facebook Ad campaign Rape Time to Stop,ADVERTISING SERVICES,PUBLIC PROTECTION
REDACTED,28.92,02/10/2014,BECCLES BOOKS LTD,LAC - books for cooking activity,BOOK STORES,CYP
REDACTED,20.11,03/10/2014,FACEBK  MW7JT6EDT2,CS/Police Facebook Ad campaign Rape Time to Stop,ADVERTISING SERVICES,PUBLIC PROTECTION
REDACTED,53,03/10/2014,SCHOOLWEAR-UK.COM,school uniform for young person C12+ 937/2,FAMILY CLOTHING STORES,CYP
REDACTED,74,03/10/2014,W A CHURCH LTD,Grass seed for river restoration project,"MARINAS, MARINE SERVICE/SUPPLIES",E&T
REDACTED,17.98,03/10/2014,STAPLES UK,Stationery for event EFMS unable to provide,"OFFICE, SCHOOL SUPPLY, AND STATIONERY STORES",RESOURCE MANAGEMENT
REDACTED,12,03/10/2014,EOE COOP,Toilet rolls x 6 packs for WTC,"GROCERY STORES, SUPERMARKETS",FIRE
REDACTED,-9.25,03/10/2014,GRO HM PASSPORT OFFICE,GRO Refund for Birth Certificate ref 059GS983/1,GOVERNMENT SERVICES-NOT ELSEWHERE CLASSIFIED,CYP
REDACTED,26.14,03/10/2014,Amazon EU,Books,DIRECT MARKETING-OTHER DIRECT MARKETERS/NOT ELSEW.,CYP
REDACTED,92.45,03/10/2014,PACEY COMMERCIAL SERVI,EFYS Framework Books X 12,"ORGANIZATIONS, CHARITABLE AND SOCIAL SERVICES",CYP
REDACTED,-18.5,06/10/2014,GRO HM PASSPORT OFFICE,GRO Refund for Birth Certificate ref 059GS959/2,GOVERNMENT SERVICES-NOT ELSEWHERE CLASSIFIED,CYP
REDACTED,48.9,06/10/2014,SCREWFIX,Random Orbit Sander Replacement,"BUILDING MATERIALS, LUMBER STORES",E&T
REDACTED,154.8,06/10/2014,BIGDUG LIMITED,Studded rubber flooring 3mm thick x 1.2 wide black,DIRECT MARKETING-CATALOG MERCHANTS,FIRE
REDACTED,146.36,06/10/2014,TESCO STORE 2877,Looked after children provisions,"GROCERY STORES, SUPERMARKETS",CYP
REDACTED,48.98,06/10/2014,WF ELECTRICAL IPSWICH,Materials for installing Lincat w/b at wattisham,ELECTRICAL PARTS AND EQUIPMENT,FIRE
REDACTED,68.95,06/10/2014,GORDON INCE LIMITE,school uniform for young person C12+ 941/3,FAMILY CLOTHING STORES,CYP
REDACTED,7.9,06/10/2014,Amazon  Mktplce EU-UK,Heavy duty charger cable for iPads,BOOK STORES,PUBLIC PROTECTION
REDACTED,-107.6,06/10/2014,TURNER TOOL HIRE,Credit for Tool rental  returned,"EQUIPMENT RENTAL&LEASING SVS, FURNTURE/TOOL RENTAL",E&T
REDACTED,19.86,06/10/2014,FACEBK  K7J8R6WDT2,CS/Police Facebook Ad campaign Rape Time to Stop,ADVERTISING SERVICES,PUBLIC PROTECTION
REDACTED,20.15,06/10/2014,Amazon  Mktplce EU-UK,IPad Cases for Acorns CC,BOOK STORES,CYP
REDACTED,255.22,06/10/2014,Amazon Web Services,onesuffolk hosting,BUSINESS SERVICES-NOT ELSEWHERE CLASSIFIED,RESOURCE MANAGEMENT
REDACTED,54.99,06/10/2014,ARGOS RETAIL GROUP,Dictaphone for Business Support Team South Suffolk,DISCOUNT STORES,CYP
REDACTED,2.47,07/10/2014,B & Q,Wattisham washing machine top for lincat,"BUILDING MATERIALS, LUMBER STORES",FIRE
REDACTED,26.37,07/10/2014,TOOLSTATION LTD,Line Marking paint for stores,HARDWARE STORES,FIRE
REDACTED,11.3,07/10/2014,TOOLSTATION LTD,Line marking paint for stores,HARDWARE STORES,FIRE
REDACTED,35,07/10/2014,IPSWICH BOROUGH CO,Parkingf fine recieved whilst on duty.,GOVERNMENT SERVICES-NOT ELSEWHERE CLASSIFIED,FIRE
REDACTED,2.89,07/10/2014,POST OFFICE COUNTER,Postage,POSTAL SERVICES-GOVERNMENT ONLY,FIRE
REDACTED,22.04,07/10/2014,WWW.GIFTS.SBSDIGITAL.C,LAC - school photographs - 1 child,PHOTOGRAPHIC STUDIOS,CYP
REDACTED,12.4,07/10/2014,POST OFFICE COUNTER,SG & AGM papers to councillors for mtg on 15 Oct,POSTAL SERVICES-GOVERNMENT ONLY,E&T
REDACTED,399.34,07/10/2014,WF ELECTRICAL IPSWICH,XXXXX caddy charging leads,ELECTRICAL PARTS AND EQUIPMENT,FIRE
REDACTED,279.95,08/10/2014,UKTOOLCENTRE,Twin Pack Drill & Driver,HARDWARE STORES,E&T
REDACTED,28.28,08/10/2014,ARGOS RETAIL GROUP,Answerphone for XXXXX (SCCP),DISCOUNT STORES,E&T
REDACTED,32.52,08/10/2014,PAYPAL  CORDLESSTOO,Replacement  Cordless Batteryx1,ELECTRONIC SALES,E&T
REDACTED,15.96,08/10/2014,Amazon  Mktplce EU-UK,Memory Cards for Cameras - XXXXX,BOOK STORES,CYP
REDACTED,7.55,08/10/2014,SAINSBURYS 0411,food and drink for sessions,"GROCERY STORES, SUPERMARKETS",CYP
REDACTED,75,08/10/2014,WF ELECTRICAL IPSWICH,brandon RCD socket for ambulance service,ELECTRICAL PARTS AND EQUIPMENT,FIRE
REDACTED,95.94,08/10/2014,Amazon  Mktplce EU-UK,6 x ee 4g mifi cards,BOOK STORES,CYP
REDACTED,407.49,08/10/2014,PC WORLD ONLINE,education laptop for young person XXXXX,ELECTRONIC SALES,CYP
REDACTED,5.18,08/10/2014,STAPLES UK,stationary,"OFFICE, SCHOOL SUPPLY, AND STATIONERY STORES",FIRE
REDACTED,15.19,08/10/2014,Amazon  Mktplce EU-UK,Looked After Children - Replacement Remote,BOOK STORES,CYP
REDACTED,7.06,08/10/2014,POST OFFICE COUNTER,postage costs,POSTAL SERVICES-GOVERNMENT ONLY,CYP
REDACTED,1.18,09/10/2014,FACEBOOK AFFCN62VD2,recruitment advertising. re charged to cust,ADVERTISING SERVICES,RESOURCE MANAGEMENT
REDACTED,223.5,09/10/2014,WWW.BAAF.ORG.UK,BAAF Preparing to Adoption Trainers Guide/Workbook,DIRECT MARKETING-COMBINATION CATALOG/RETAIL MERCH.,CYP
REDACTED,49.51,09/10/2014,Amazon EU,Bereavement Books for HS/Eye CC,DIRECT MARKETING-OTHER DIRECT MARKETERS/NOT ELSEW.,CYP
REDACTED,22,09/10/2014,EB  CAS/SUFFOLK CONGRE,Volunteering  Summit attendance fee,BUSINESS SERVICES-NOT ELSEWHERE CLASSIFIED,E&T
REDACTED,9.39,09/10/2014,SAINSBURYS 2163,Supplies for the centre,"GROCERY STORES, SUPERMARKETS",CYP
REDACTED,10.54,09/10/2014,Amazon EU,Foetal Alcohol Spectrum Book for Panel,DIRECT MARKETING-OTHER DIRECT MARKETERS/NOT ELSEW.,CYP
REDACTED,21,09/10/2014,SUFFOLK COUNTY COUNCIL,2 x birth certs. 086VH935/18,GOVERNMENT SERVICES-NOT ELSEWHERE CLASSIFIED,CYP
REDACTED,12.63,09/10/2014,EDMUNDSON ELECTRICAL,charging lead plug for Low south,ELECTRICAL PARTS AND EQUIPMENT,FIRE
REDACTED,68.34,09/10/2014,Amazon EU,Diaries,DIRECT MARKETING-OTHER DIRECT MARKETERS/NOT ELSEW.,E&T
REDACTED,26.94,09/10/2014,SAFETYSUPPL,Safety Halmets x 10,DEPARTMENT STORES,E&T
REDACTED,-24,09/10/2014,WWW.BAAF.ORG.UK,BAAF Books,DIRECT MARKETING-COMBINATION CATALOG/RETAIL MERCH.,CYP
REDACTED,41.67,09/10/2014,Amazon EU,2x 25 Gift Cards for Young People: Consultation,DIRECT MARKETING-OTHER DIRECT MARKETERS/NOT ELSEW.,CYP
REDACTED,43.32,10/10/2014,CURRYS SUPERSTORE,Printer cartridges,ELECTRONIC SALES,E&T
REDACTED,3.22,10/10/2014,TESCO STORES 2986,Food for groups S-O2014 R3,"GROCERY STORES, SUPERMARKETS",CYP
REDACTED,14.96,10/10/2014,Amazon  Mktplce EU-UK,Supplies for craft session,BOOK STORES,CYP
REDACTED,5,10/10/2014,SL-NCP-ADAPTIS ECOM GA,Parking for presentation at ROSPA,AUTOMOBILE PARKING LOTS AND GARAGES,PUBLIC PROTECTION
REDACTED,6.93,10/10/2014,STAPLES UK,Biros and sharpies for site work,"OFFICE, SCHOOL SUPPLY, AND STATIONERY STORES",E&T
REDACTED,89,10/10/2014,LOOSE ENDS,Silk Tie for visit of Chinese Delegation,WOMEN'S ACCESSORY AND SPECIALTY STORES,E&T
REDACTED,58.5,10/10/2014,EC MAINLINE CO INT,"XXXXX, E'boro-M'chester, LLW strat mtg, 21-10",PASSENGER RAILWAYS,E&T
REDACTED,200,10/10/2014,THE LEONARD HOTEL,Hotel for XXXXX to attend Road Safety Confe,"LODGING-HOTELS,MOTELS,RESORTS-NOT CLASSIFIED",E&T
REDACTED,22,10/10/2014,EB  CAS/SUFFOLK CONGRE,XXXXX to attend Volunteering Event CAS,BUSINESS SERVICES-NOT ELSEWHERE CLASSIFIED,ACS
REDACTED,195,10/10/2014,SIGNS@CAPTURE LIMITED,BNG Project D2 education course posters,MISCELLANEOUS PUBLISHING AND PRINTING,E&T
REDACTED,33.98,10/10/2014,WWW.MANDMDIRECT.COM,Looked After Children - Clothing Trainers CGu,SPORTING GOODS STORES,CYP
REDACTED,70.4,10/10/2014,HEATHROW AIRPORT,Airport parking for XXXXX Cyberyouth project,AUTOMOBILE PARKING LOTS AND GARAGES,CYP
REDACTED,10.88,10/10/2014,WURTH UK LTD,M5 nut inserts,"DURABLE GOODS, NOT ELSEWHERE CLASSIFIED",FIRE
REDACTED,41.58,10/10/2014,Amazon EU,Bereavement Books for HS/Eye CC,DIRECT MARKETING-OTHER DIRECT MARKETERS/NOT ELSEW.,CYP
REDACTED,245.2,13/10/2014,THEATRE ROYAL,LAC - Christmas Pantomime - 7 children + carers,"THEATRICAL PRODUCERS(EXCL MOTION PIX),TICKET AGNCY",CYP
REDACTED,136,13/10/2014,SPILMAN HOTEL,2 Night in Wales for SW ET,"LODGING-HOTELS,MOTELS,RESORTS-NOT CLASSIFIED",CYP
REDACTED,49.98,13/10/2014,Amazon EU,Books,DIRECT MARKETING-OTHER DIRECT MARKETERS/NOT ELSEW.,CYP
REDACTED,78.83,13/10/2014,TESCO STORE 2877,Looked after childrens provisions,"GROCERY STORES, SUPERMARKETS",CYP
REDACTED,48.5,13/10/2014,COPY CENTRE,Printing costs,"OFFICE, SCHOOL SUPPLY, AND STATIONERY STORES",E&T
REDACTED,60,13/10/2014,EB  UKTI EAST BUSINESS,Two tickets for UKTI Business Culture Workshop,BUSINESS SERVICES-NOT ELSEWHERE CLASSIFIED,E&T
REDACTED,42.99,13/10/2014,SCREWFIX DIRECT,"PPE Safety boots, Steel toe caps.","BUILDING MATERIALS, LUMBER STORES",E&T
REDACTED,460.58,13/10/2014,AIR FRAN  05723579444715,Flights for XXXXX Cyberyouth project,AIR FRANCE,CYP
REDACTED,51.17,13/10/2014,PREMIER INN 44536560,Hotel XXXXX 1 night,"EATING PLACES, RESTAURANTS",ACS
REDACTED,105.75,14/10/2014,STAPLES UK,Supplies for Skills Team Day,"OFFICE, SCHOOL SUPPLY, AND STATIONERY STORES",E&T
REDACTED,34.74,14/10/2014,B&Q,Materials for Wattisham BA Room,"BUILDING MATERIALS, LUMBER STORES",FIRE
REDACTED,345.3,14/10/2014,TURNERS(IPSWICH),BRAKE REPAIR TO ET62 ANX CFO CAR,AUTOMOTIVE SERVICE SHOPS,FIRE
REDACTED,11.72,14/10/2014,Amazon  Mktplce EU-UK,Looked After Children - Wall Art Sticker for room,BOOK STORES,CYP
REDACTED,2.79,14/10/2014,STAFFORD COSTA KIOSK,Refreshment - travel to water inc manager course,"EATING PLACES, RESTAURANTS",FIRE
REDACTED,2.19,14/10/2014,Amazon  Mktplce EU-UK,Looked After Children - Wall Sticker for room,BOOK STORES,CYP
REDACTED,4.74,14/10/2014,ASDA  STORES 4218,LEAF - XXXXX,"GROCERY STORES, SUPERMARKETS",CYP
REDACTED,15,14/10/2014,OYSTER RENEW WEB,Top up of XXXXX Oystercard,PASSENGER RAILWAYS,E&T
REDACTED,28,14/10/2014,WF ELECTRICAL IPSWICH,Replacement bulb for lamp post for Wattisham,ELECTRICAL PARTS AND EQUIPMENT,FIRE
REDACTED,57.65,14/10/2014,ASDA STORES 7134,Food for groups S-O2014 R5,"GROCERY STORES, SUPERMARKETS",CYP
REDACTED,107.02,14/10/2014,SCREWFIX DIRECT,Fire signs for Felixstowe Ferry,"BUILDING MATERIALS, LUMBER STORES",CYP
REDACTED,9.45,14/10/2014,WINSTONS WISH,book for XXXXX,"ORGANIZATIONS, CHARITABLE AND SOCIAL SERVICES",CYP
REDACTED,27.75,14/10/2014,GRO HM PASSPORT OFFICE,Passport for Lac Child,GOVERNMENT SERVICES-NOT ELSEWHERE CLASSIFIED,CYP
REDACTED,2.37,14/10/2014,"MOTO CAMBRIDGE, COSTA",Refreshment - travel to water inc manager course,"EATING PLACES, RESTAURANTS",FIRE
REDACTED,8,14/10/2014,BLACK BULL INN,Eve meal - water inc manager course,"EATING PLACES, RESTAURANTS",FIRE
REDACTED,10,14/10/2014,OYSTER RENEW WEB,Top up Oystercard XXXXX,PASSENGER RAILWAYS,E&T
REDACTED,18.32,14/10/2014,M&S SIMPLY FOOD,Lunch - travel water inc manager course,"MISC FOOD STORE-CONVENIENCE,MRKT,SPLTY,VENDNG MACS",FIRE
REDACTED,20.24,14/10/2014,Amazon  Mktplce EU-UK,Materials for groups S-O2014 R4,BOOK STORES,CYP
REDACTED,191.23,14/10/2014,THE NSMC CIC,Credits for National Social Marketing Centre,SCHOOLS & EDUCATIONAL SVC-NOT ELSEWHERE CLASSIFIED,PUBLIC PROTECTION
REDACTED,1.85,14/10/2014,BOOKASSIST,Hotel for XXXXX Cyberyouth project,TRAVEL AGENCIES AND TOUR OPERATORS,CYP
REDACTED,9.51,14/10/2014,SCREWFIX,Screws for general maintenance,"BUILDING MATERIALS, LUMBER STORES",E&T
REDACTED,3.58,15/10/2014,FASTHOSTS INTERNET,Website for Invest in Suffolk,COMPUTER NETWORK/INFORMATION SERVICES,E&T
REDACTED,3.78,15/10/2014,Amazon  Mktplce EU-UK,Lookded After Children - Wall Sticker for room,BOOK STORES,CYP
REDACTED,6.5,15/10/2014,PRET A MANGER,Lunch - On way to NuLeAF AGM and Steering Group,"EATING PLACES, RESTAURANTS",E&T
REDACTED,12.45,15/10/2014,HANDMADE BURGER COMPAN,Dinner - NuLeAF Steering Group and AGM.,"EATING PLACES, RESTAURANTS",E&T
REDACTED,56,15/10/2014,BYTEMARK HOSTING,bytemark hosting,COMPUTER SOFTWARE STORES,RESOURCE MANAGEMENT
REDACTED,50,15/10/2014,THE CASTLE INN,50 Charter Voucher (AFDF),"BAR,LOUNGE,DISCO,NIGHTCLUB,TAVERN-ALCOHOLIC DRINKS",E&T
REDACTED,11.47,15/10/2014,SCREWFIX DIRECT,Materials for Wattisham BA room,"BUILDING MATERIALS, LUMBER STORES",FIRE
REDACTED,108.33,15/10/2014,CURRYS,TV / DVD player for Prevention presentations,ELECTRONIC SALES,FIRE
REDACTED,13.95,15/10/2014,WWW ESPARES CO UK,Oven Catch for Looked After Children Home,ELECTRICAL PARTS AND EQUIPMENT,CYP
REDACTED,30.99,15/10/2014,ELMERS HARDWARE,Paint/hand brush/metal dustpan/blade saw,HARDWARE STORES,FIRE
REDACTED,15.08,15/10/2014,WAITROSE 140,food and drink for sessions,"GROCERY STORES, SUPERMARKETS",CYP
REDACTED,43,15/10/2014,EUROSTAR INTERNET,Eurostar 2 Seas launch Nov14,PASSENGER RAILWAYS,RESOURCE MANAGEMENT
REDACTED,173.6,16/10/2014,GREATER ANGLIA T/O,Rail fare for 2 days to london,PASSENGER RAILWAYS,FIRE
REDACTED,6.62,16/10/2014,WASABI KINGS CROSS,Dinner - return from NuLeAF AGM and Steering Group,"EATING PLACES, RESTAURANTS",E&T
REDACTED,40,16/10/2014,DSA THEORY TEST,Theory test booked by XXXXX,GOVERNMENT SERVICES-NOT ELSEWHERE CLASSIFIED,FIRE
REDACTED,18.41,16/10/2014,Trainline.com,Staff travel to Ipswich Induction,PASSENGER RAILWAYS,CYP
REDACTED,178.94,16/10/2014,ARGOS RETAIL GROUP,washing machine for family in need (charity money),DISCOUNT STORES,CYP
REDACTED,74.47,16/10/2014,B&Q,Plumbing and building materials for XXXXX wattisham,"BUILDING MATERIALS, LUMBER STORES",FIRE
REDACTED,57.68,16/10/2014,Amazon  Mktplce EU-UK,Tom Tom Multi-chargers for pool cars,BOOK STORES,PUBLIC PROTECTION
REDACTED,266.67,16/10/2014,WWW.LEISURE.ORDNANCE,OS County Maps for stock to issue as requested,DIRECT MARKETING-CATALOG MERCHANTS,FIRE
REDACTED,18.41,16/10/2014,Trainline.com,Train ticket for staff travel to Endeavour House ,PASSENGER RAILWAYS,CYP
REDACTED,3.4,16/10/2014,UPPER CRUST,Subsistance for london course,"PACKAGE STORES, BEER, WINE, LIQUOR",FIRE
REDACTED,5.3,16/10/2014,WATER LANE LEISURE CEN,Theraputic session court booking,RECREATION SERVICES (NOT ELSEWHERE CLASSIFIED),CYP
REDACTED,168,17/10/2014,EUROSTAR INTERNET,XXXXX Lille EU Business Partner Meet,PASSENGER RAILWAYS,ACS
REDACTED,10.88,17/10/2014,Amazon EU,Books for Family Finding,DIRECT MARKETING-OTHER DIRECT MARKETERS/NOT ELSEW.,CYP
REDACTED,65,17/10/2014,THE BEECHES HOTEL & LE,"XXXXX, 169821.Beeches Hotel 16/10/14","LODGING-HOTELS,MOTELS,RESORTS-NOT CLASSIFIED",RESOURCE MANAGEMENT
REDACTED,65,17/10/2014,THE BEECHES HOTEL & LE,"XXXXX, 169820, Beeches Hotel 16/10/2014","LODGING-HOTELS,MOTELS,RESORTS-NOT CLASSIFIED",RESOURCE MANAGEMENT
REDACTED,292.28,17/10/2014,BOOKERECOMM,Looked after Children - Provisions,CATERERS,CYP
REDACTED,2.43,17/10/2014,Amazon  Mktplce EU-UK,Number & Symbol Dough Cutters for Eye CC,BOOK STORES,CYP
REDACTED,8,17/10/2014,SL-NCP-ADAPTIS ECOM GA,Parking for meeting Southampton,AUTOMOBILE PARKING LOTS AND GARAGES,PUBLIC PROTECTION
REDACTED,11.88,17/10/2014,Amazon EU,Books for Family Finding,DIRECT MARKETING-OTHER DIRECT MARKETERS/NOT ELSEW.,CYP
REDACTED,30,17/10/2014,CITB,H&S tests,"COLLEGES, UNIV, PRO SCHOOLS, JUNIOR COLLEGES",E&T
REDACTED,65,17/10/2014,THE BEECHES HOTEL & LE,"XXXXX,Booking No169819.Beeches Hotel,16/10/14","LODGING-HOTELS,MOTELS,RESORTS-NOT CLASSIFIED",RESOURCE MANAGEMENT
REDACTED,25.45,17/10/2014,Trainline.com,Train Tickets for XXXXX to NeBOSH Diploma,PASSENGER RAILWAYS,PUBLIC PROTECTION
REDACTED,54.17,17/10/2014,THE BEECHES HOTEL & LE,Cllr XXXX Beeches Hotel PCP Conference,"LODGING-HOTELS,MOTELS,RESORTS-NOT CLASSIFIED",CHIEF EXECS
REDACTED,360,17/10/2014,LABORATORIES-EUROPE LT,Certificates for XXXXX and XXXXX,"COMPUTERS, COMPUTER PERIPHERAL EQUIPMENT, SOFTWARE",RESOURCE MANAGEMENT
REDACTED,89.93,17/10/2014,LITTLEHAMPTON BOOK SER,Suffolk County Map BOOKS Street Level,BOOK STORES,FIRE
REDACTED,1.88,17/10/2014,NOCHEX - 0113 344 3996,BMX Bike Deposit for Looked After Children,PROFESSIONAL SERVICES-NOT ELSEWHERE CLASSIFIED,CYP
REDACTED,4.57,17/10/2014,MCDONALDS,Eve meal - travel from water inc manager course,FAST FOOD RESTAURANTS,FIRE
REDACTED,13.8,17/10/2014,Amazon EU,Books for Family Finding,DIRECT MARKETING-OTHER DIRECT MARKETERS/NOT ELSEW.,CYP
REDACTED,52.5,17/10/2014,VUE NCS CITB HS&E TEST,H&S tests,SCHOOLS & EDUCATIONAL SVC-NOT ELSEWHERE CLASSIFIED,E&T
REDACTED,21,17/10/2014,SUFFOLK COUNTY COUNCIL,086VH904/31 2 birth certificates,GOVERNMENT SERVICES-NOT ELSEWHERE CLASSIFIED,CYP
REDACTED,47.2,17/10/2014,ALLENDALE GROUP,REPLACE PCB BOARD IN CLEANER,MISCELLANEOUS AND SPECIALTY RETAIL STORES,FIRE
REDACTED,42.01,17/10/2014,CARRIER BAG SHOP,Brown Paper bags for posting leaflet holders,INDUSTRIAL SUPPLIES NOT ELSEWHERE CLASSIFIED,PUBLIC PROTECTION
REDACTED,16.98,17/10/2014,Amazon  Mktplce EU-UK,Looked after Children - Wall Sticker,BOOK STORES,CYP
REDACTED,15.51,17/10/2014,TOOLSTATION LTD,PLUMBERS HOLESAW KIT,HARDWARE STORES,FIRE
REDACTED,42.5,17/10/2014,VUE NCS CITB HS&E TEST,H&S tests,SCHOOLS & EDUCATIONAL SVC-NOT ELSEWHERE CLASSIFIED,E&T
REDACTED,99.98,20/10/2014,MAPLIN IPSWICH IP4,Hand held radios for Training Development Assessme,ELECTRONIC SALES,FIRE
REDACTED,11.75,20/10/2014,SAINSBURYS 2163,Messy Play items,"GROCERY STORES, SUPERMARKETS",CYP
REDACTED,30,20/10/2014,SUFFOLK COUNTY COUNCIL,XXXXX 2x Birth Cert plus Marriage Cert Order,GOVERNMENT SERVICES-NOT ELSEWHERE CLASSIFIED,CYP
REDACTED,415.83,20/10/2014,DELL PRODUCT,education laptop for young person XXXXX,"COMP PROGRAMING,DATA PRCSNG,INTGRTD SYS DSGN SRVS",CYP
REDACTED,21.87,20/10/2014,B&Q,Materials for B.A room Wattisham,"BUILDING MATERIALS, LUMBER STORES",FIRE
REDACTED,5.4,20/10/2014,OMNICO PLASTICS,Trim for BA Cleaning Rm Wattisham,INDUSTRIAL SUPPLIES NOT ELSEWHERE CLASSIFIED,FIRE
REDACTED,56.99,20/10/2014,Amazon  Mktplce EU-UK,Resources for Eye CC,BOOK STORES,CYP
REDACTED,4.58,20/10/2014,M6 TOLL,Toll charge travelling to water inc manager course,"BRIDGE AND ROAD FEES, TOLLS",FIRE
REDACTED,20,20/10/2014,OYSTER AUTOTOPUP,Oyster Card top-up,PASSENGER RAILWAYS,RESOURCE MANAGEMENT
REDACTED,24.24,20/10/2014,PAYPAL  INSPIRATION,Luxury jewellery boxes for Economic Development,"CLOCK, JEWELRY, WATCH, AND SILVERWARE STORE",E&T
REDACTED,163.64,20/10/2014,TESCO STORE 2877,looked after childrens provision,"GROCERY STORES, SUPERMARKETS",CYP
REDACTED,4.68,20/10/2014,Amazon  Mktplce EU-UK,Toys for Eye CC,BOOK STORES,CYP
REDACTED,20.15,20/10/2014,Amazon  Mktplce EU-UK,Cookie Cutters for Eye CC,BOOK STORES,CYP
REDACTED,35.98,20/10/2014,Amazon  Mktplce EU-UK,equipment for the home,BOOK STORES,CYP
REDACTED,4.3,20/10/2014,Amazon  Mktplce EU-UK,13 x Various Squeaky Squirty Animal Baby Bath Toys,BOOK STORES,CYP
REDACTED,1,20/10/2014,EC MAINLINE CO INT,"XXXXX E'boro-L'don, RWPG mtg, 10 Dec",PASSENGER RAILWAYS,E&T
REDACTED,12.07,20/10/2014,Amazon EU,Icing Colours - Eye CC,DIRECT MARKETING-OTHER DIRECT MARKETERS/NOT ELSEW.,CYP
REDACTED,47.47,20/10/2014,SAINSBURYS 2163,Supplies for Centre,"GROCERY STORES, SUPERMARKETS",CYP
REDACTED,40,20/10/2014,DSA THEORY TEST,Theory test booked by XXXXX,GOVERNMENT SERVICES-NOT ELSEWHERE CLASSIFIED,FIRE
REDACTED,4.2,20/10/2014,GREGGS S2067,Food for Groups O-N2014 R1,BAKERIES,CYP
REDACTED,299,20/10/2014,SURVEYMONKEY.COM,Annual Subscription,COMPUTER NETWORK/INFORMATION SERVICES,CYP
REDACTED,31.59,21/10/2014,WWW.STAPLES.CO.UK,Looked After Children - Folders,"OFFICE, SCHOOL SUPPLY, AND STATIONERY STORES",CYP
REDACTED,49.9,21/10/2014,Amazon  Mktplce EU-UK,equipment for the home,BOOK STORES,CYP
REDACTED,768.19,21/10/2014,WWW.NISBETS.COM,Crockery Trimley Village Hall XXXXX Locality Budg,DIRECT MARKETING-CATALOG MERCHANTS,CHIEF EXECS
REDACTED,5.22,21/10/2014,OMNICO PLASTICS,Materials for B.A room Wattisham,INDUSTRIAL SUPPLIES NOT ELSEWHERE CLASSIFIED,FIRE
REDACTED,51.45,21/10/2014,THE BOOK PEOPLE,Materials for groups O-N2014 R2,BOOK STORES,CYP
REDACTED,14.82,21/10/2014,Amazon EU,Items for Adoption Week Bus,DIRECT MARKETING-OTHER DIRECT MARKETERS/NOT ELSEW.,CYP
REDACTED,111,21/10/2014,DSA,Test booked for XXXXX by XXXXX,GOVERNMENT SERVICES-NOT ELSEWHERE CLASSIFIED,FIRE
REDACTED,96,21/10/2014,FOREST CAMPING LTD,Camp site fees for D of E Police training course,CAMPGROUNDS AND TRAILER PARKS,CYP
REDACTED,1,21/10/2014,Amazon  Mktplce EU-UK,Items for Adoption Week Bus,BOOK STORES,CYP
REDACTED,15.15,21/10/2014,ASDA  STORES 4218,Snack for Twins/Stay & Play/Making & Marking,"GROCERY STORES, SUPERMARKETS",CYP
REDACTED,111,21/10/2014,DSA,Test booked by XXXXX for XXXXX,GOVERNMENT SERVICES-NOT ELSEWHERE CLASSIFIED,FIRE
REDACTED,6.24,21/10/2014,STOWMARKET CARAVANS,240v Socket for new Appliance,"CAMPER DEALERS, RECREATIONAL AND UTILITY TRAILERS",FIRE
REDACTED,5,21/10/2014,SL-NCP-ADAPTIS ECOM GA,Car parking Stowmarket station for CoPrImE meeting,AUTOMOBILE PARKING LOTS AND GARAGES,PUBLIC PROTECTION
REDACTED,90,21/10/2014,WWW.CFOASERVICES.CO.UK,to attend a CFOA seminar in london,"ORGANIZATIONS, MEMBERSHIP-NOT ELSEWHERE CLASSIFIED",FIRE
REDACTED,12,21/10/2014,NOCHEX - 0113 344 3996,BMX Bike for Looked After Children,PROFESSIONAL SERVICES-NOT ELSEWHERE CLASSIFIED,CYP
REDACTED,161.65,22/10/2014,PREMIER INN44010690,"Hotel for XXXXX, Barnstaple",PREMIER INN,CYP
REDACTED,15.48,22/10/2014,PATROLSTORE.COM,Airwave accessory for new NILO officer,ACCESSORY AND APPAREL STORES-MISCELLANEOUS,FIRE
REDACTED,39,22/10/2014,www.Flybe EQ76VP,National Children and Adults Conference Manchester,"AIR CARRIERS, AIRLINES-NOT ELSEWHERE CLASSIFIED",ACS
REDACTED,52.77,22/10/2014,WWW.STAPLES.CO.UK,Split - Metal File Boxes (33.33%),"OFFICE, SCHOOL SUPPLY, AND STATIONERY STORES",CYP
REDACTED,52.77,22/10/2014,WWW.STAPLES.CO.UK,Split - Metal File Boxes (33.33%),"OFFICE, SCHOOL SUPPLY, AND STATIONERY STORES",CYP
REDACTED,52.76,22/10/2014,WWW.STAPLES.CO.UK,Split - Metal File Boxes (33.34%),"OFFICE, SCHOOL SUPPLY, AND STATIONERY STORES",CYP
REDACTED,31.18,22/10/2014,ASDA HOME SHOPPING CAR,Food for groups O-N2014 R3,"GROCERY STORES, SUPERMARKETS",CYP
REDACTED,1034.28,22/10/2014,"LYNDA.COM, INC.",Online training package,SCHOOLS & EDUCATIONAL SVC-NOT ELSEWHERE CLASSIFIED,PUBLIC PROTECTION
REDACTED,1034.28,22/10/2014,"LYNDA.COM, INC.",Online training package,SCHOOLS & EDUCATIONAL SVC-NOT ELSEWHERE CLASSIFIED,PUBLIC PROTECTION
REDACTED,15.93,22/10/2014,B & Q,Samsung USB cables for TS pool cars (charging phones),"BUILDING MATERIALS, LUMBER STORES",FIRE
REDACTED,17.38,22/10/2014,B&Q,The Whitehal Effect book by Professor John Seddon,"BUILDING MATERIALS, LUMBER STORES",FIRE
REDACTED,73.32,22/10/2014,WWW.SHOWCOMMS.CO.UK,Desk fan,HOUSEHOLD APPLIANCE STORES,FIRE
REDACTED,15.9,22/10/2014,JT PEGG & SONS LTD,Community Safety Facebook advertisement,"GLASS, PAINT, WALLPAPER STORES",E&T
REDACTED,25.99,22/10/2014,WF ELECTRICAL IPSWICH,The Whitehal Effect book by Professor John Seddon,ELECTRICAL PARTS AND EQUIPMENT,FIRE
REDACTED,1.91,22/10/2014,WWW.SAFELINCS.CO.UK,Packed lunch for the visit of the Chair of the Trading Standards Institute,MISCELLANEOUS AND SPECIALTY RETAIL STORES,FIRE
REDACTED,6.24,22/10/2014,FAST KEY SERVICES LTD,2x FAST Keys CC410,HARDWARE EQUIPMENT AND SUPPLIES,CYP
REDACTED,43.43,22/10/2014,SCREWFIX DIRECT,"4x yellow spray paint,2x cable ties, 1 paint scrap","BUILDING MATERIALS, LUMBER STORES",FIRE
REDACTED,12.45,22/10/2014,JOHNSONS 1699,repair and cleaning of Uniform,DRY CLEANERS,FIRE
REDACTED,3.1,22/10/2014,SL-NCP-ADAPTIS ECOM GA,parking for coprime meeting,AUTOMOBILE PARKING LOTS AND GARAGES,PUBLIC PROTECTION
REDACTED,54.96,22/10/2014,C BREWER & SONS,Paint for BA Cleaning Rm. Wattisham,"BUILDING MATERIALS, LUMBER STORES",FIRE
REDACTED,71.85,22/10/2014,WWW.MOBILEFUN.CO.U,Samsung USB cables for TS pool cars (charging phones),TELECOMMUNICATION EQUIPMENT INCL TELEPHONE SALES,PUBLIC PROTECTION
REDACTED,1197,22/10/2014,PREMIER INN44514000,Approved to ride accommodation for students,PREMIER INN,FIRE
REDACTED,-159,22/10/2014,Amazon  Mktplce EU-UK,Refund  on Kodak PlaySport zx5 Full HD Camera,BOOK STORES,CYP
REDACTED,145.5,23/10/2014,TVLICENSING.CO.UK,Looked after Children - TV License,"CONSULTING, MANAGEMENT, AND PUBLIC RELATIONS SVCS",CYP
REDACTED,61.07,23/10/2014,HOL INN BIRM CITY,"FNP Conference, XXXXX","LODGING-HOTELS,MOTELS,RESORTS-NOT CLASSIFIED",CYP
REDACTED,165.6,23/10/2014,WWW.STONEHILL.CO.UK,SRF Nameplace holders,"OFFICE, SCHOOL SUPPLY, AND STATIONERY STORES",PUBLIC PROTECTION
REDACTED,6.62,23/10/2014,TRAVELODGE,Meal at B & B for mother,TRAVELODGE,CYP
REDACTED,205.5,23/10/2014,WWW.VOUCHEREXPRESS.CO.,Furniture & Equipment Grants,"GIFT, CARD, NOVELTY AND SOUVENIR SHOPS",ACS
REDACTED,50,23/10/2014,WWW.MYCARCHECK.COM,Purchase credits on Lookup System for Lorrywatch,INFORMATION RETRIEVAL SERVICES,PUBLIC PROTECTION
REDACTED,305.45,23/10/2014,GLOBEHUGGER,East Suffolk Community Emergency Grab Bags,CHEMICALS/ALLIED PRODUCTS NOT ELSEWHERE CLASSIFIED,PUBLIC PROTECTION
REDACTED,119,23/10/2014,DOUBLETREE,Hotel Accomodation for seminar in Leeds,DOUBLETREE,FIRE
REDACTED,69.58,23/10/2014,TRAVELODGE,Overnight Accommodation for mother and baby.,TRAVELODGE,CYP
REDACTED,8.45,23/10/2014,EAST OF ENG CO-OP SOC,food and drink for sessions,"GROCERY STORES, SUPERMARKETS",CYP
REDACTED,113,23/10/2014,EUROSTAR INTERNET,Dom M-M Eurostar attend partner meeting Lille,PASSENGER RAILWAYS,ACS
REDACTED,11.95,23/10/2014,WWW.BAAF.ORG.UK,Books for use in fostering assessments,DIRECT MARKETING-COMBINATION CATALOG/RETAIL MERCH.,CYP
REDACTED,61.07,23/10/2014,HOL INN BIRM CITY,"FNP Conference, XXXXX","LODGING-HOTELS,MOTELS,RESORTS-NOT CLASSIFIED",CYP
REDACTED,5.64,23/10/2014,WAITROSE 658,Volunteer's expenses,"GROCERY STORES, SUPERMARKETS",E&T
REDACTED,61.07,23/10/2014,HOL INN BIRM CITY,"FNP Conference, XXXXX","LODGING-HOTELS,MOTELS,RESORTS-NOT CLASSIFIED",CYP
REDACTED,6.46,23/10/2014,Amazon EU,Brush,DIRECT MARKETING-OTHER DIRECT MARKETERS/NOT ELSEW.,FIRE
REDACTED,23.74,23/10/2014,Amazon EU,Filofax Inserts,DIRECT MARKETING-OTHER DIRECT MARKETERS/NOT ELSEW.,CYP
REDACTED,55.1,23/10/2014,MEADOWS BLINDS LTD,Looked After Children - Replace Blinds & Louvres,"DRAPERY, UPOLSTERY, AND WINDOW COVERINGS STORES",CYP
REDACTED,61.07,23/10/2014,HOL INN BIRM CITY,"FNP Conference, XXXXX","LODGING-HOTELS,MOTELS,RESORTS-NOT CLASSIFIED",CYP
REDACTED,50.99,24/10/2014,GIFTVOUCHERSHOP.CO.UK,Prize for Making Food waste History Questionnaire,"GIFT, CARD, NOVELTY AND SOUVENIR SHOPS",E&T
REDACTED,121.2,24/10/2014,MILLENNIUM,Hotel for XXXXX,MILLENNIUM HOTELS,RESOURCE MANAGEMENT
REDACTED,16.21,24/10/2014,Taxi Service Amsterdam,Taxi - conference to hotel,LIMOUSINES AND TAXICABS,E&T
REDACTED,9.28,24/10/2014,Amazon  Mktplce EU-UK,Craft knife set,BOOK STORES,FIRE
REDACTED,17.3,24/10/2014,CAB APP LIMITED,Taxi - airport to home,LIMOUSINES AND TAXICABS,E&T
REDACTED,-55.32,24/10/2014,WWW.SHOWCOMMS.CO.UK,Refund for misderected Airwave accessories,HOUSEHOLD APPLIANCE STORES,FIRE
REDACTED,30.93,24/10/2014,B&Q,Sealant for wattisham,"BUILDING MATERIALS, LUMBER STORES",FIRE
REDACTED,4.46,24/10/2014,NS SCHIPHOL,Train airport to Amsterdam,PASSENGER RAILWAYS,E&T
REDACTED,31.99,24/10/2014,Amazon  Mktplce EU-UK,Filofax Inserts,BOOK STORES,CYP
REDACTED,9.16,24/10/2014,SAINSBURYS 0411,food and drink for sessions,"GROCERY STORES, SUPERMARKETS",CYP
REDACTED,72.98,24/10/2014,RESTAURANT PIET DE LE,Evening meal - XXXXX and XXXXX,"EATING PLACES, RESTAURANTS",E&T
REDACTED,3.78,24/10/2014,Amazon  Mktplce EU-UK,White card A4,BOOK STORES,FIRE
REDACTED,128.94,24/10/2014,ARGOS DIRECT,Bed - ED,DISCOUNT STORES,CYP
REDACTED,2.12,24/10/2014,Amazon  Mktplce EU-UK,Weddo hobby knife,BOOK STORES,FIRE
REDACTED,13.09,24/10/2014,PIZZAPASTAPANINI,Dinner at airport,CATERERS,E&T
REDACTED,1.72,24/10/2014,POST OFFICE COUNTER,Postage O-N2014 R4,POSTAL SERVICES-GOVERNMENT ONLY,CYP
REDACTED,55.5,24/10/2014,ASDA SUPERSTORE,Mugs/glasses/cutlery/dishwasher tabs,"GROCERY STORES, SUPERMARKETS",FIRE
REDACTED,79.8,24/10/2014,Amazon  Mktplce EU-UK,4 x Pumps for IBC Rest Centre pack ups,BOOK STORES,PUBLIC PROTECTION
REDACTED,12.4,24/10/2014,Amazon  Mktplce EU-UK,Looked After Children - Doorbell,BOOK STORES,CYP
REDACTED,307.5,27/10/2014,HEWLETT-PACKARD LTD.,Laptop for XXXXX,"COMPUTERS, COMPUTER PERIPHERAL EQUIPMENT, SOFTWARE",E&T
REDACTED,4.47,27/10/2014,NS AMSTERDAM CENTRAAL,Train - Amsterdam to airport,PASSENGER RAILWAYS,E&T
REDACTED,21.88,27/10/2014,MERCURE AMSTERDAM ARTH,Room tax - hotel,HOTEL MERCURE,E&T
REDACTED,17.15,27/10/2014,B&Q,plumbing fittings for BA at Wattisham,"BUILDING MATERIALS, LUMBER STORES",FIRE
REDACTED,15.13,27/10/2014,MERCURE AMSTERDAM ARTH,Room tax - XXXXX,HOTEL MERCURE,E&T
REDACTED,94.67,27/10/2014,WWW.GREATART.CO.UK,Materials for Touching the Tide art workshops,"ARTIST SUPPLY STORES, CRAFT SHOPS",E&T
REDACTED,90,27/10/2014,TESCO DIRECT,Looked after Children - Various equipment purchase,MISCELLANEOUS AND SPECIALTY RETAIL STORES,CYP
REDACTED,73.4,27/10/2014,EC MAINLINE CO INT,"XXXXX, E'boro-M'chester, 14 Nov, LLWR mtg",PASSENGER RAILWAYS,E&T
REDACTED,8.06,27/10/2014,ALDI,Snacks after-school sessions,"GROCERY STORES, SUPERMARKETS",CYP
REDACTED,75,27/10/2014,EB  INTRODUCTORY CERTI,2 x Genesys Certification Exam Vouchers,BUSINESS SERVICES-NOT ELSEWHERE CLASSIFIED,RESOURCE MANAGEMENT
REDACTED,73.2,27/10/2014,WF ELECTRICAL IPSWICH,Metal halid lamp for wattisham lamp post,ELECTRICAL PARTS AND EQUIPMENT,FIRE
REDACTED,51.46,27/10/2014,PREMIER INN44014315,Hotel accommodation for 2 day CFOA meeting,PREMIER INN,FIRE
REDACTED,35.76,27/10/2014,TESCO - Wayfair,Looked after children - equipment purchase,MISCELLANEOUS AND SPECIALTY RETAIL STORES,CYP
REDACTED,178,27/10/2014,EUROSTAR INTERNET,eurostar tickets to Brussels to attend Prosafe,PASSENGER RAILWAYS,PUBLIC PROTECTION
REDACTED,75,27/10/2014,Amazon EU,Debt advise Handbook Paperback 1906076669,DIRECT MARKETING-OTHER DIRECT MARKETERS/NOT ELSEW.,CYP
REDACTED,1120.22,27/10/2014,BLS SHAREGATE,Sharegate Migration Software 12 month subscription,COMPUTER SOFTWARE STORES,FIRE
REDACTED,50.48,28/10/2014,PAYPAL  AQUACHECKEN,HOG PUMP,"ACCOUNTING, AUDITING AND BOOKKEEPING SERVICES",FIRE
REDACTED,18.2,28/10/2014,GREATER ANGLIA,Rail ticket to Cambridge for LRF Exercise,PASSENGER RAILWAYS,FIRE
REDACTED,53.81,28/10/2014,ELC-INTERNET,toys for Foley House - playroom and toy library,DEPARTMENT STORES,CYP
REDACTED,40,28/10/2014,DSA THEORY TEST,Theory test booked by XXXXX,GOVERNMENT SERVICES-NOT ELSEWHERE CLASSIFIED,FIRE
REDACTED,60,28/10/2014,WWW.DRIMBEAUTY.COM,Fraudulant Activity identified - to be refunded,COSMETIC STORES,PUBLIC PROTECTION
REDACTED,99.79,28/10/2014,WWW.KENTWELL.CO.UK,Activity for Looked After Children,"THEATRICAL PRODUCERS(EXCL MOTION PIX),TICKET AGNCY",CYP
REDACTED,70.15,28/10/2014,C BREWER & SONS,Paint for BA Cleaning Rm Wattisham Training center,"BUILDING MATERIALS, LUMBER STORES",FIRE
REDACTED,7,28/10/2014,SUFFOLK COUNTY COUNCIL,Birth Certificate 059GS984/3,GOVERNMENT SERVICES-NOT ELSEWHERE CLASSIFIED,CYP
REDACTED,53.39,28/10/2014,ASDA HOME SHOPPING CAR,Food for groups O-N2014 R5,"GROCERY STORES, SUPERMARKETS",CYP
REDACTED,20.4,28/10/2014,THURLOW NUNN STANDEN L,Chain for saw - ArchTMS001,HARDWARE STORES,E&T
REDACTED,89.11,28/10/2014,MOTHERCARE DIRECT-E-CO,Bath Support and Cot Mattress,DEPARTMENT STORES,CYP
REDACTED,4.17,28/10/2014,ELC-INTERNET,toys and toy library,DEPARTMENT STORES,CYP
REDACTED,16.13,28/10/2014,SAINSBURYS 0411,food and drink for sessions,"GROCERY STORES, SUPERMARKETS",CYP
REDACTED,358.33,29/10/2014,UNION JACK CLUB,Lesley Crompton hotel accommodation in London.,"LODGING-HOTELS,MOTELS,RESORTS-NOT CLASSIFIED",PUBLIC PROTECTION
REDACTED,1.79,29/10/2014,FASTHOSTS INTERNET,Invest in Suffolk Website,COMPUTER NETWORK/INFORMATION SERVICES,E&T
REDACTED,62.5,29/10/2014,GREATERANGLIA.CO.UK,NE Rail travel to East Coast Flood Planning Group,PASSENGER RAILWAYS,PUBLIC PROTECTION
REDACTED,27,29/10/2014,WWW.BRITISHWILDLIFE.CO,British Wildlife Magazine Annual Subscription,DIRECT MARKETING-COMBINATION CATALOG/RETAIL MERCH.,E&T
REDACTED,12.3,29/10/2014,M&S SIMPLY FOODS SSP L,Lunch - NDA stakeholder event,"MISC FOOD STORE-CONVENIENCE,MRKT,SPLTY,VENDNG MACS",E&T
REDACTED,41.6,29/10/2014,TOOLSTATION LTD,RCD plugs for charging leads,HARDWARE STORES,FIRE
REDACTED,2.9,29/10/2014,WATTISHAM SVS SHOP,Veggie meal for student on course,CATERERS,FIRE
REDACTED,141.64,29/10/2014,PREMIER INN 44533710,"XXXXX, J XXXXX,XXXXX, accom, Jan SG",PREMIER INN,E&T
REDACTED,65.76,29/10/2014,ARGOS RETAIL GROUP,"Moses Basket & Stand, Cot Sheets, Safety Gate",DISCOUNT STORES,CYP
REDACTED,25.2,29/10/2014,GREATERANGLIA.CO.UK,Train fare staff training GTY-Ips return,PASSENGER RAILWAYS,CYP
REDACTED,32.47,29/10/2014,ARGOS RETAIL GROUP,Baby Blankets and Cot Sheets,DISCOUNT STORES,CYP
REDACTED,7.4,29/10/2014,WATER LANE LEISURE CEN,Court booking for therapeutic work,RECREATION SERVICES (NOT ELSEWHERE CLASSIFIED),CYP
REDACTED,26.6,29/10/2014,TOOLSTATION LTD,RCD plugs for charging leads,HARDWARE STORES,FIRE
REDACTED,40,29/10/2014,DSA THEORY TEST,Theory test booked by XXXXX,GOVERNMENT SERVICES-NOT ELSEWHERE CLASSIFIED,FIRE
REDACTED,94.5,29/10/2014,GRAYS FISH AND CHIP SH,Feeding crews at fire - Sal' Army had left scene,"EATING PLACES, RESTAURANTS",FIRE
REDACTED,15.98,29/10/2014,B & Q,Rechargable battery charge and batteries,"BUILDING MATERIALS, LUMBER STORES",FIRE
REDACTED,7.25,29/10/2014,B&Q,isolating valves for wattisham BA,"BUILDING MATERIALS, LUMBER STORES",FIRE
REDACTED,170.83,29/10/2014,Amazon  Mktplce EU-UK,3 in 1 Travel System Polka Dot Design,BOOK STORES,CYP
REDACTED,100,29/10/2014,MOTHERCARE DIRECT-E-CO,XXXXX Cot Bed Country Pine,DEPARTMENT STORES,CYP
REDACTED,6.9,29/10/2014,SAINSBURYS 2163,Centre supplies,"GROCERY STORES, SUPERMARKETS",CYP
REDACTED,9.99,29/10/2014,PAYPAL  CARBONTRUST,CT Report (Energy Management,"CONSULTING, MANAGEMENT, AND PUBLIC RELATIONS SVCS",E&T
REDACTED,38.13,29/10/2014,PREMIER INN 44533710,"XXXXX, accom, Jan XXXXX",PREMIER INN,E&T
REDACTED,131.9,29/10/2014,IBIS BRIGHTON,Hotel Accommodation XXXXX and XXXXX.,"LODGING-HOTELS,MOTELS,RESORTS-NOT CLASSIFIED",CYP
REDACTED,3.49,29/10/2014,Amazon  Mktplce EU-UK,Looked After Children - Mains Charger,BOOK STORES,CYP
REDACTED,33.25,29/10/2014,SAINSBURYS 2163,Escape the trap session supplies,"GROCERY STORES, SUPERMARKETS",CYP
REDACTED,58.32,29/10/2014,Amazon  Mktplce EU-UK,Fire Guard,BOOK STORES,CYP
REDACTED,64.5,30/10/2014,THE PLASTIC BOX COMPAN,Boxes for Archaeological Detect. Lakenheath code,INDUSTRIAL SUPPLIES NOT ELSEWHERE CLASSIFIED,E&T
REDACTED,80.62,30/10/2014,Amazon EU,Rexel shredder for training policy,DIRECT MARKETING-OTHER DIRECT MARKETERS/NOT ELSEW.,FIRE
REDACTED,46.53,30/10/2014,B&Q,Equipment & paint for Felixstowe ferry,"BUILDING MATERIALS, LUMBER STORES",CYP
REDACTED,24.24,30/10/2014,THE SAFETY SUPPLY,Safety Helmet x 10_ NL,ACCESSORY AND APPAREL STORES-MISCELLANEOUS,E&T
REDACTED,40,30/10/2014,SUFFOLK COUNTY COUNCIL,URGENT COPIES OF BIRTH CERTIFICATES (39680),GOVERNMENT SERVICES-NOT ELSEWHERE CLASSIFIED,RESOURCE MANAGEMENT
REDACTED,18.45,30/10/2014,WF ELECTRICAL IPSWICH,Cable for outside socket. Brandon Fire Station.,ELECTRICAL PARTS AND EQUIPMENT,FIRE
REDACTED,121.2,30/10/2014,DWN LIMITED,D of E Maps,MISCELLANEOUS AND SPECIALTY RETAIL STORES,CYP
REDACTED,125.17,30/10/2014,Amazon EU,6 Hazard DVD's 6 LGV Theory books for driver train,DIRECT MARKETING-OTHER DIRECT MARKETERS/NOT ELSEW.,FIRE
REDACTED,29.52,30/10/2014,WF ELECTRICAL IPSWICH,charging sockets and plugs,ELECTRICAL PARTS AND EQUIPMENT,FIRE
REDACTED,20,30/10/2014,PARENTPAY.COM&PAY24-7.,Looked After Children - Parent Pay dinner money XXXXX,"COLLEGES, UNIV, PRO SCHOOLS, JUNIOR COLLEGES",CYP
REDACTED,76.67,30/10/2014,AUBYN DAVIES,school uniform C12+953/1,MEN'S AND BOY'S CLOTHING AND ACCESSORIES STORES,CYP
REDACTED,178.94,31/10/2014,THE ORIGINAL COTTAGE C,Accomodation XXXXX,TRAVEL AGENCIES AND TOUR OPERATORS,CYP
REDACTED,194.28,31/10/2014,THE ORIGINAL COTTAGE C,For XXXXX,TRAVEL AGENCIES AND TOUR OPERATORS,CYP
REDACTED,9.22,31/10/2014,POST OFFICE COUNTER,Postage for alerter repairs and Ofcom Letter,POSTAL SERVICES-GOVERNMENT ONLY,FIRE
REDACTED,224.17,31/10/2014,TURNER MOTOR GROUP,SERVICE FDS CAR EF13 FUB,AUTOMOTIVE SERVICE SHOPS,FIRE
REDACTED,7.5,31/10/2014,SL-NCP-ADAPTIS ECOM GA,Parking for MSCC meeting,AUTOMOBILE PARKING LOTS AND GARAGES,PUBLIC PROTECTION
REDACTED,103.35,31/10/2014,THE AVON GORGE HOTEL,Accommodation for XXXXX Holmatro course,"LODGING-HOTELS,MOTELS,RESORTS-NOT CLASSIFIED",FIRE
REDACTED,67.5,31/10/2014,EB  OXFORD REAL FARMIN,XXXXX Ticket for Oxford Real Farming conference,BUSINESS SERVICES-NOT ELSEWHERE CLASSIFIED,E&T
REDACTED,23.1,31/10/2014,CABCARD SERVICES (,Taxi - XXXXX stakeholder event,LIMOUSINES AND TAXICABS,E&T
REDACTED,247.98,31/10/2014,MILLENNIUM,XXXXX - Accommodation for SOCITM Conference (33.33%),MILLENNIUM HOTELS,RESOURCE MANAGEMENT
REDACTED,247.98,31/10/2014,MILLENNIUM,XXXXX - Accommodation for SOCITM Conference (33.33%),MILLENNIUM HOTELS,RESOURCE MANAGEMENT
REDACTED,247.98,31/10/2014,MILLENNIUM,XXXXX- Accommodation for SOCITM Conferenc (33.34%),MILLENNIUM HOTELS,RESOURCE MANAGEMENT
REDACTED,6.25,31/10/2014,ERIC,leaflets - bedwetting guide for parents,"ORGANIZATIONS, CHARITABLE AND SOCIAL SERVICES",CYP
REDACTED,7.04,31/10/2014,PRET A MANGER,Dinner - XXXXX stakeholder event,"EATING PLACES, RESTAURANTS",E&T
REDACTED,450,31/10/2014,PARKHILL HOTEL,Accommodation for Industrial Action cover 4 days,"LODGING-HOTELS,MOTELS,RESORTS-NOT CLASSIFIED",FIRE
REDACTED,53.99,31/10/2014,WWW.YHA.ORG.UK,XXXXX accommodation in Bristol 4th November 2014,"LODGING-HOTELS,MOTELS,RESORTS-NOT CLASSIFIED",E&T
REDACTED,17.5,31/10/2014,WILKO RETAIL LIMIT,Stationary supplies For XXXXX course,HOUSEHOLD APPLIANCE STORES,CYP
REDACTED,180,31/10/2014,CARLTON MANOR HOTEL LT,Accommodation for Industrial Action Cover 4 days,"LODGING-HOTELS,MOTELS,RESORTS-NOT CLASSIFIED",FIRE
REDACTED,117,31/10/2014,E/TUNNEL INTERNET,XXXXX Eurotunnel meeting in Lille,TRANSPORTATION SERVICES NOT ELSEWHERE CLASSIFIED,ACS
REDACTED,2.91,31/10/2014,Amazon  Mktplce EU-UK,Looked After Children - Replace Remote Control,BOOK STORES,CYP
REDACTED,27.45,31/10/2014,MOTHERCARE DIRECT-E-CO,Mothercare Car Seat,DEPARTMENT STORES,CYP
REDACTED,281.2,31/10/2014,THE ORIGINAL COTTAGE C,Self catering for adopters XXXXX and XXXXX,TRAVEL AGENCIES AND TOUR OPERATORS,CYP
REDACTED,16.42,31/10/2014,CO-OP FOOD,welfare for strike standby crews,"GROCERY STORES, SUPERMARKETS",FIRE
REDACTED,100.94,03/11/2014,WF ELECTRICAL IPSWICH,Cabinet to protect XXXXX to Bury App/bay,ELECTRICAL PARTS AND EQUIPMENT,FIRE
REDACTED,91.19,03/11/2014,Trainline.com,train tickets from Becclles to St Pancreas Eurosta,PASSENGER RAILWAYS,PUBLIC PROTECTION
REDACTED,407.96,03/11/2014,WVR.UK (HOSEASONS GP),Respite rental for LAC child 006SBL062,TRAVEL AGENCIES AND TOUR OPERATORS,CYP
REDACTED,117.29,03/11/2014,WVR.UK (HOSEASONS GP),Deposit-booking ref:7517035(requested by XXXXX,TRAVEL AGENCIES AND TOUR OPERATORS,CYP
REDACTED,15,03/11/2014,MARRIOTT,Internet access - XXXXX stakeholder event,MARRIOTT,E&T
REDACTED,14,03/11/2014,SUFFOLK COUNTY COUNCIL,Birth Certificates 059GS984/3,GOVERNMENT SERVICES-NOT ELSEWHERE CLASSIFIED,CYP
REDACTED,64.9,03/11/2014,EB  CREATIVE COLLISION,Conference for XXXXX,BUSINESS SERVICES-NOT ELSEWHERE CLASSIFIED,CYP
REDACTED,683.3,03/11/2014,WF ELECTRICAL IPSWICH,Marcaddy charging lead for app/charging,ELECTRICAL PARTS AND EQUIPMENT,FIRE
REDACTED,5.98,03/11/2014,EASILY LTD,Domain names,"CONSULTING, MANAGEMENT, AND PUBLIC RELATIONS SVCS",RESOURCE MANAGEMENT
REDACTED,16.19,04/11/2014,TOYS R US,Thermometer and Changing Mat,DEPARTMENT STORES,CYP
REDACTED,58.2,04/11/2014,Amazon EU,Books for Studies,DIRECT MARKETING-OTHER DIRECT MARKETERS/NOT ELSEW.,CYP
REDACTED,-25,04/11/2014,Trainline.com,REfund unsed train tickets,PASSENGER RAILWAYS,PUBLIC PROTECTION
REDACTED,10.94,04/11/2014,FAST KEY SERVICES LTD,Fast Keys FM099 and FM171,HARDWARE EQUIPMENT AND SUPPLIES,CYP
REDACTED,20.13,04/11/2014,Amazon  Mktplce EU-UK,Cushion for DL as per DSE,BOOK STORES,FIRE
REDACTED,5,04/11/2014,ASDA  STORES 4218,Cleaning products,"GROCERY STORES, SUPERMARKETS",CYP
REDACTED,29.95,04/11/2014,ASDA  STORES 4218,Snack for Twins/Stay & Play/Making & Marking,"GROCERY STORES, SUPERMARKETS",CYP
REDACTED,21,04/11/2014,PAYPAL  DARRENTANSL,Mammals of Essex book offer @ reduced price,BOOK STORES,E&T
REDACTED,29.98,04/11/2014,WAREHOUSE CLEARANC,Storage trolleys for craft/materials,"EQUIP, FURNITURE, HOME FURNSHNGS STRS (EXCPT APPL)",CYP
REDACTED,269.43,04/11/2014,Amazon Web Services,onesuffolk hosting,BUSINESS SERVICES-NOT ELSEWHERE CLASSIFIED,RESOURCE MANAGEMENT
REDACTED,179,04/11/2014,Stena Line Ltd,"NH to Schiedam (Safe Ice Workshop, 4th Nov 2014)",TRAVEL AGENCIES AND TOUR OPERATORS,E&T
REDACTED,235.33,04/11/2014,IBIS BRUSSELS ST.CATH,hotel accomodation brussels,"LODGING-HOTELS,MOTELS,RESORTS-NOT CLASSIFIED",PUBLIC PROTECTION
REDACTED,89.97,04/11/2014,GRAMMARLY.COM,Subscription,PROFESSIONAL SERVICES-NOT ELSEWHERE CLASSIFIED,RESOURCE MANAGEMENT
REDACTED,37,05/11/2014,WWW.FILOFAX.CO.UK,"Team diaries - XXXXX, XXXXX, XXXXX, XXXXX",WOMEN'S ACCESSORY AND SPECIALTY STORES,PUBLIC PROTECTION
REDACTED,382.5,05/11/2014,PC WORLD ONLINE,education laptop for young person XXXXX,ELECTRONIC SALES,CYP
REDACTED,99.99,05/11/2014,HALFORDS 0415,Satalite Navigation,BICYCLE SHOPS-SALES AND SERVICE,FIRE
REDACTED,50.91,05/11/2014,AQUAJET CLEANING E,Repairs to Station Floor Cleaner 01,"CLEANING AND MAINTENANCE, JANITORIAL SERVICES",FIRE
REDACTED,270,05/11/2014,WWW.SPEEDINGSLTD.CO.UK,Obscuration masks x 20,BUSINESS SERVICES-NOT ELSEWHERE CLASSIFIED,FIRE
REDACTED,416.66,05/11/2014,CURRYS ONLINE,education laptop for young person XXXXX,ELECTRONIC SALES,CYP
REDACTED,200,05/11/2014,TRIARCHY PRESS LIM,The Whitehal Effect book by Professor John Seddon,BOOK STORES,PUBLIC PROTECTION
REDACTED,99.99,05/11/2014,WWW.GREATOUTDOORSSUPE,Waterproof Jacket x 1 - XXXXX,MEN'S AND WOMEN'S CLOTHING STORES,E&T
REDACTED,14.99,05/11/2014,Amazon  Mktplce EU-UK,Desk fan,BOOK STORES,PUBLIC PROTECTION
REDACTED,28,05/11/2014,Amazon  Mktplce EU-UK,Footrest for XXXXX as per DSE,BOOK STORES,FIRE
REDACTED,8.99,06/11/2014,EASILY LTD,domain names,"CONSULTING, MANAGEMENT, AND PUBLIC RELATIONS SVCS",RESOURCE MANAGEMENT
REDACTED,60,06/11/2014,SOLACE LTD,East of england Seminar - XXXXX,"ORGANIZATIONS, MEMBERSHIP-NOT ELSEWHERE CLASSIFIED",RESOURCE MANAGEMENT
REDACTED,82.42,06/11/2014,PENRITH SURVIVAL EQUIP,Waterproof Trousers x 1 - XXXXX,WOMEN'S ACCESSORY AND SPECIALTY STORES,E&T
REDACTED,8.72,06/11/2014,STAPLES UK,Stationery,"OFFICE, SCHOOL SUPPLY, AND STATIONERY STORES",FIRE
REDACTED,30.56,06/11/2014,TESCO STORES 5123,Equipment & gorceries for therputic work,"GROCERY STORES, SUPERMARKETS",CYP
REDACTED,5.05,06/11/2014,WWW.DRINKAWARE.CO.UK,Unit measure cups & unit & calorie calculators,OTHER SERVICES (NOT ELSEWHERE CLASSIFIED),PUBLIC PROTECTION
REDACTED,3.99,06/11/2014,STAPLES UK,Equipment for event,"OFFICE, SCHOOL SUPPLY, AND STATIONERY STORES",RESOURCE MANAGEMENT
REDACTED,57.5,06/11/2014,Amazon EU,Camera equipment,DIRECT MARKETING-OTHER DIRECT MARKETERS/NOT ELSEW.,RESOURCE MANAGEMENT
REDACTED,22,06/11/2014,EB  CAS/SUFFOLK CONGRE,Conference attendance- XXXXX,BUSINESS SERVICES-NOT ELSEWHERE CLASSIFIED,CYP
REDACTED,-768.19,06/11/2014,WWW.NISBETS.COM,Crockery Trimley Village Hall XXXXX Locality Budg,DIRECT MARKETING-CATALOG MERCHANTS,CHIEF EXECS
REDACTED,5.8,06/11/2014,WATTISHAM SVS SHOP,Veggie meal for student on course,CATERERS,FIRE
REDACTED,29,06/11/2014,Amazon  Mktplce EU-UK,Camera equipment,BOOK STORES,RESOURCE MANAGEMENT
REDACTED,374.99,06/11/2014,PC WORLD ONLINE,education laptop for young person XXXXX,ELECTRONIC SALES,CYP
REDACTED,2.7,07/11/2014,FACEBK  9ZZ8W6WDT2,Community Safety Facebook advertisement,ADVERTISING SERVICES,PUBLIC PROTECTION
REDACTED,22,07/11/2014,EB  CAS/SUFFOLK CONGRE,Conference attendance - XXXXX,BUSINESS SERVICES-NOT ELSEWHERE CLASSIFIED,CYP
REDACTED,34,07/11/2014,B&Q,Office Heater,"BUILDING MATERIALS, LUMBER STORES",E&T
REDACTED,-15,07/11/2014,VUE NCS CITB HS&E TEST,Refund from cancelled H&S test,SCHOOLS & EDUCATIONAL SVC-NOT ELSEWHERE CLASSIFIED,E&T
REDACTED,250,07/11/2014,WWW POSTCODEANYWHERE C,Postcode Anywhere credit topup (XXXXX),COMPUTER NETWORK/INFORMATION SERVICES,E&T
REDACTED,7,07/11/2014,SUFFOLK COUNTY COUNCIL,Birth Certificate,GOVERNMENT SERVICES-NOT ELSEWHERE CLASSIFIED,CYP
REDACTED,11.8,07/11/2014,TOOLSTATION LTD,waste fitting for Wattisham BA room,HARDWARE STORES,FIRE
REDACTED,79,07/11/2014,Amazon Prime,3G EE cards for mi-fi's,DIRECT MARKETING-CONTINUITY/SUBSCRIPTION MERCHANTS,CYP
REDACTED,-7.5,07/11/2014,VUE NCS CITB HS&E TEST,Refund from cancelled H&S test,SCHOOLS & EDUCATIONAL SVC-NOT ELSEWHERE CLASSIFIED,E&T
REDACTED,50.33,07/11/2014,WWW.BAKERROSS.CO.UK,Christmas Resources for Bluebells CC,"ARTIST SUPPLY STORES, CRAFT SHOPS",CYP
REDACTED,114.59,10/11/2014,TESCO STORE 2877,Looked after Children - Provisions,"GROCERY STORES, SUPERMARKETS",CYP
REDACTED,3.1,10/11/2014,BYTEMARK HOSTING,hosting for the source,COMPUTER SOFTWARE STORES,RESOURCE MANAGEMENT
REDACTED,1.6,10/11/2014,Amazon  Mktplce EU-UK,Looked after Children - Equip purchase wall sticke,BOOK STORES,CYP
REDACTED,169.5,10/11/2014,WWW.GRAVELMASTER.C,1 pallet of rocksalt in 22Kg bags for WTC direct d,"BUILDING MATERIALS, LUMBER STORES",FIRE
REDACTED,1.95,10/11/2014,Amazon  Mktplce EU-UK,Camera equipment,BOOK STORES,RESOURCE MANAGEMENT
REDACTED,13.48,10/11/2014,Amazon  Mktplce EU-UK,Looked after Children - Equipment purchase,BOOK STORES,CYP
REDACTED,4.18,10/11/2014,Amazon  Mktplce EU-UK,Looked after Children-Equipment purchase,BOOK STORES,CYP
REDACTED,170.57,10/11/2014,BOOKER LIMITED IPSWICH,Beverages for Wattisham Training Centre,CATERERS,FIRE
REDACTED,129,10/11/2014,PREMIER INN44019120,"XXXXX, Skills Team for Bridgwat
er College",PREMIER INN,E&T
REDACTED,798.3,10/11/2014,PC WORLD ONLINE,education laptops for young people XXXXX/XXXXX,ELECTRONIC SALES,CYP
REDACTED,8.33,10/11/2014,Amazon EU,1 Pack of emergency action cards,DIRECT MARKETING-OTHER DIRECT MARKETERS/NOT ELSEW.,FIRE
REDACTED,50,10/11/2014,B & Q,Paint and filler for Orford Comms Rm.,"BUILDING MATERIALS, LUMBER STORES",FIRE
REDACTED,6.25,10/11/2014,WEST END DRY CLEANERS,Dry cleaning of undress uniform trousers,DRY CLEANERS,FIRE
REDACTED,3.23,10/11/2014,Amazon  Mktplce EU-UK,Looked after Children - Equipment purchase,BOOK STORES,CYP
REDACTED,20,10/11/2014,OYSTER AUTOTOPUP,Auto oyster top up,PASSENGER RAILWAYS,ACS
REDACTED,260,10/11/2014,PREMIER INN44510920,IHE Traffic Sign Conference,PREMIER INN,E&T
REDACTED,186.66,10/11/2014,Trainline.com,"Train ticket for XXXXX, XXXXX and XXXXX",PASSENGER RAILWAYS,PUBLIC PROTECTION
REDACTED,69,10/11/2014,QUALITY HOTEL BSE,Young Persons stay at XXXXX,"LODGING-HOTELS,MOTELS,RESORTS-NOT CLASSIFIED",ACS
REDACTED,6.13,10/11/2014,B&Q,SILICON SEALER FOR WATTISHAM BA,"BUILDING MATERIALS, LUMBER STORES",FIRE
REDACTED,21.36,10/11/2014,ASDA SUPERSTORE,Emergency beverages for Network Rail course,"GROCERY STORES, SUPERMARKETS",FIRE
REDACTED,11.66,10/11/2014,Amazon EU,Looked after Children- Equip purchase,DIRECT MARKETING-OTHER DIRECT MARKETERS/NOT ELSEW.,CYP
REDACTED,8.33,10/11/2014,Amazon EU,1 pack of emergency action cards,DIRECT MARKETING-OTHER DIRECT MARKETERS/NOT ELSEW.,FIRE
REDACTED,23.48,10/11/2014,Amazon EU,Thatching string ARCHTMS001,DIRECT MARKETING-OTHER DIRECT MARKETERS/NOT ELSEW.,E&T
REDACTED,35.14,10/11/2014,Amazon EU,Civil litigation handbook,DIRECT MARKETING-OTHER DIRECT MARKETERS/NOT ELSEW.,FIRE
REDACTED,51,11/11/2014,WWW.BUILDERS-BUDDY.CO.,Wheelbarrow x 1 - XXXXX,BUSINESS SERVICES-NOT ELSEWHERE CLASSIFIED,E&T
REDACTED,129.17,11/11/2014,Amazon EU,Access to Work Monitor XXXXX,DIRECT MARKETING-OTHER DIRECT MARKETERS/NOT ELSEW.,CYP
REDACTED,79,11/11/2014,Amazon EU,Mental Health Act Manual,DIRECT MARKETING-OTHER DIRECT MARKETERS/NOT ELSEW.,RESOURCE MANAGEMENT
REDACTED,45.65,11/11/2014,SKYLAND EQUIPMENT LTD,Kettle x 1 - NL,LANDSCAPING AND HORTICULTURAL SERVICES,E&T
REDACTED,21,11/11/2014,POUNDLAND LTD 1719,Children's Takeover Event,DISCOUNT STORES,RESOURCE MANAGEMENT
REDACTED,11.99,11/11/2014,Amazon  Mktplce EU-UK,Looked after Children - equip purch - crockery,BOOK STORES,CYP
REDACTED,75.73,11/11/2014,THE CHILDRENS PROJECT,Materials For B4B Group,BOOK STORES,CYP
REDACTED,42,11/11/2014,Amazon  Mktplce EU-UK,Court of Protection Handbook,BOOK STORES,RESOURCE MANAGEMENT
REDACTED,17.5,11/11/2014,ICELAND,Children's Takeover Event,"GROCERY STORES, SUPERMARKETS",RESOURCE MANAGEMENT
REDACTED,93.73,11/11/2014,RIDGEONS,Plasterboard for FIDU C/O S Rhind,"BUILDING MATERIALS, LUMBER STORES",FIRE
REDACTED,29.98,11/11/2014,STAPLES UK,labels for urgent task,"OFFICE, SCHOOL SUPPLY, AND STATIONERY STORES",FIRE
REDACTED,97.6,12/11/2014,RIDGEONS,Kiln dried sand for Wattisham hot boxes,"BUILDING MATERIALS, LUMBER STORES",FIRE
REDACTED,5.6,12/11/2014,FAST KEY SERVICES,560/14 - 2 x cupboard keys for cupboard E,BUSINESS SERVICES-NOT ELSEWHERE CLASSIFIED,RESOURCE MANAGEMENT
REDACTED,77.97,12/11/2014,Amazon  Mktplce EU-UK,Two model wind turbine kits,BOOK STORES,E&T
REDACTED,56.98,12/11/2014,EE & T-MOBILE,Deposit on new phone,TELECOM INCL PREPAID/RECURRING PHONE SVCS,E&T
REDACTED,208,12/11/2014,ARCHANT COMMUNITY MEDI,Subscription to archant news updates,MISCELLANEOUS PUBLISHING AND PRINTING,RESOURCE MANAGEMENT
REDACTED,45.61,12/11/2014,TESCO STORE 3234,Provisions/materials for groups,"GROCERY STORES, SUPERMARKETS",CYP
REDACTED,16.11,12/11/2014,MEADOWS BLINDS LTD,Looked After Children - Replace Louvres,"DRAPERY, UPOLSTERY, AND WINDOW COVERINGS STORES",CYP
REDACTED,51,12/11/2014,EC MAINLINE CO INT,"XXXXX, H'worth-L'don, XXXXX, 10 Dec",PASSENGER RAILWAYS,E&T
REDACTED,300,12/11/2014,TRIARCHY PRESS LIM,The Whitehal Effect book by Professor John Seddon,BOOK STORES,PUBLIC PROTECTION
REDACTED,10.07,12/11/2014,HALFORDS 0883,hazard tape. Clear lacquer spray,BICYCLE SHOPS-SALES AND SERVICE,FIRE
REDACTED,275.83,12/11/2014,HIDEAWAYS.CO.UK,Self catering for adopters of XXXXX,"LODGING-HOTELS,MOTELS,RESORTS-NOT CLASSIFIED",CYP
REDACTED,6.4,12/11/2014,POST OFFICE COUNTER,Registered post to send XXXX to solicitor,POSTAL SERVICES-GOVERNMENT ONLY,FIRE
REDACTED,39.01,12/11/2014,TESCO DIRECT,Toys for toy library,MISCELLANEOUS AND SPECIALTY RETAIL STORES,CYP
REDACTED,6.42,12/11/2014,ASDA  STORES 4218,Cleaning products,"GROCERY STORES, SUPERMARKETS",CYP
REDACTED,350,12/11/2014,RSPB,RSPB gift membership 4 Lord Lieutenant of Suffolk,"GIFT, CARD, NOVELTY AND SOUVENIR SHOPS",RESOURCE MANAGEMENT
REDACTED,17.85,12/11/2014,THE BUSH CRAFT CENTRE,Survival JetSceram Whistle,TENT AND AWNING SHOPS,E&T
REDACTED,6.59,12/11/2014,ASDA  STORES 4218,"Snack for twins/stay & Play/Making, making","GROCERY STORES, SUPERMARKETS",CYP
REDACTED,203.29,12/11/2014,WP-IMPRESS PUBLISH,ssafa Christmas cards from Chairman of the Council,"GIFT, CARD, NOVELTY AND SOUVENIR SHOPS",RESOURCE MANAGEMENT
REDACTED,9.99,12/11/2014,Amazon  Mktplce EU-UK,Looked after Children - Equip purch - pics,BOOK STORES,CYP
REDACTED,87.5,12/11/2014,BRITISH LARDER SUFFOLK,Packed lunch for the visit of the Chair of the Trading Standards Institute,"EATING PLACES, RESTAURANTS",PUBLIC PROTECTION
REDACTED,7.68,12/11/2014,WAITROSE 140,food and drink for sessions,"GROCERY STORES, SUPERMARKETS",CYP
REDACTED,510.5,12/11/2014,SKY HIGH,Cherry Picker hire for lamp posts etc Wattisham tr,"EQUIPMENT RENTAL&LEASING SVS, FURNTURE/TOOL RENTAL",FIRE
REDACTED,15,12/11/2014,TESCO STORE 2748,Memory stick for otter holt film footage,"GROCERY STORES, SUPERMARKETS",E&T
REDACTED,7,12/11/2014,SUFFOLK COUNTY COUNCIL,Birth Certificate,GOVERNMENT SERVICES-NOT ELSEWHERE CLASSIFIED,CYP
REDACTED,21.16,12/11/2014,WWW.BAKERROSS.CO.UK,Foam Photo Frames - XXXXX,"ARTIST SUPPLY STORES, CRAFT SHOPS",CYP
REDACTED,900,12/11/2014,RSPB,RSPB Life Membership for XXXXX,"GIFT, CARD, NOVELTY AND SOUVENIR SHOPS",CHIEF EXECS
REDACTED,23.54,13/11/2014,Amazon  Mktplce EU-UK,Looked after Children - equip purch - pics,BOOK STORES,CYP
REDACTED,-6,13/11/2014,TESCO DIRECT,Looked after Children - equipment purchase refund,MISCELLANEOUS AND SPECIALTY RETAIL STORES,CYP
REDACTED,11.98,13/11/2014,Amazon  Mktplce EU-UK,Looked after Children - Battery,BOOK STORES,CYP
REDACTED,205.5,13/11/2014,WWW.VOUCHEREXPRESS.CO.,Furniture and Equipment Grants,"GIFT, CARD, NOVELTY AND SOUVENIR SHOPS",ACS
REDACTED,63.5,13/11/2014,EC MAINLINE CO INT,"XXXXX, H'worth-M'chester, Jan XXXXX",PASSENGER RAILWAYS,E&T
REDACTED,1.73,13/11/2014,ROYAL MAIL  0845606040,Additional postage,POSTAL SERVICES-GOVERNMENT ONLY,FIRE
REDACTED,316.67,13/11/2014,BOOKERECOMM,Looked after Children - Provisions,CATERERS,CYP
REDACTED,33,13/11/2014,EC MAINLINE CO INT,"XXXXX, E'boro-M'chester, Jan SG mtg",PASSENGER RAILWAYS,E&T
REDACTED,64.98,13/11/2014,Amazon  Mktplce EU-UK,Equipment for B4B Group,BOOK STORES,CYP
REDACTED,-10,13/11/2014,TESCO DIRECT,Looked after Childre - equipment purchase refund,MISCELLANEOUS AND SPECIALTY RETAIL STORES,CYP
REDACTED,12.5,13/11/2014,FOOD SAFETY DIRECT,Looked after Children - Thermometer equipment,SCHOOLS & EDUCATIONAL SVC-NOT ELSEWHERE CLASSIFIED,CYP
REDACTED,111,14/11/2014,DSA,ADI Test for XXXXX Driver Training,GOVERNMENT SERVICES-NOT ELSEWHERE CLASSIFIED,FIRE
REDACTED,207.63,14/11/2014,ALLMETALPAR,Blanking Plates for Station Racks,ELECTRONIC SALES,FIRE
REDACTED,29.25,14/11/2014,Amazon EU,Books for Studies,DIRECT MARKETING-OTHER DIRECT MARKETERS/NOT ELSEW.,CYP
REDACTED,31.96,14/11/2014,YORKSURVEY.CO.UK,York survey level books for XXXXX,"ARCHITECTURAL, ENGINEERING, AND SURVEYING SERVICES",E&T
REDACTED,33.35,14/11/2014,SAINSBURYS SACAT 0422,Refreshments for community Renewables Event,"GROCERY STORES, SUPERMARKETS",E&T
REDACTED,100,14/11/2014,PAYPAL  NATIONALBIO,Booking 2 places for NBN Conference,"ORGANIZATIONS, CHARITABLE AND SOCIAL SERVICES",E&T
REDACTED,181.44,14/11/2014,NETMUMS LTD,Advert for childcare on netmums - for XXXXX,PROFESSIONAL SERVICES-NOT ELSEWHERE CLASSIFIED,RESOURCE MANAGEMENT
REDACTED,5.59,14/11/2014,WH SMITH,Magazines for therapuptic intervention,NEWS DEALERS AND NEWSSTANDS,CYP
REDACTED,59,14/11/2014,BIGDUG LIMITED,Folding and fixed plate sack truck - new OSU,HARDWARE EQUIPMENT AND SUPPLIES,FIRE
REDACTED,13.47,14/11/2014,WHSMITH.CO.UK,Books for Central integrated team C0-11 912/6,DIRECT MARKETING-COMBINATION CATALOG/RETAIL MERCH.,CYP
REDACTED,442.17,14/11/2014,Trainline.com,Train ticket to Manchester,PASSENGER RAILWAYS,CYP
REDACTED,9.92,14/11/2014,TOWSURE PRODUCTS L,10 Ltr Water Container x1,SPORTING GOODS STORES,E&T
REDACTED,37.48,14/11/2014,STAPLES UK,"Specialist stationery, as per XXXXX instructi","OFFICE, SCHOOL SUPPLY, AND STATIONERY STORES",CYP
REDACTED,279.3,14/11/2014,IBIS LONDON CITY,"Tomorrows People Anniversary
Awards","LODGING-HOTELS,MOTELS,RESORTS-NOT CLASSIFIED",E&T
REDACTED,111,14/11/2014,DSA,ADI Test for XXXXX Driver Training,GOVERNMENT SERVICES-NOT ELSEWHERE CLASSIFIED,FIRE
REDACTED,40.03,14/11/2014,TOOLSTATION LTD,rubber tyred castor wheels (4) for OSU generator,HARDWARE STORES,FIRE
REDACTED,65.25,14/11/2014,WWW.WORKSHOPPING.CO.UK,Garden Rake x5 - NL,"AUTOMOTIVE PARTS, ACCESSORIES STORES",E&T
REDACTED,129.9,14/11/2014,PAPERSTONE,Name badges (awards),"OFFICE, SCHOOL SUPPLY, AND STATIONERY STORES",E&T
REDACTED,115.8,14/11/2014,ARGOS LTD,F&E for XXXXX,DISCOUNT STORES,ACS
REDACTED,7,17/11/2014,SUFFOLK COUNTY COUNCIL,Birth Certificate,GOVERNMENT SERVICES-NOT ELSEWHERE CLASSIFIED,CYP
REDACTED,6.1,17/11/2014,NCP ADAPTIS ATW,Parking visit to Southampton,AUTOMOBILE PARKING LOTS AND GARAGES,PUBLIC PROTECTION
REDACTED,599,17/11/2014,Amazon  Mktplce EU-UK,education laptop for young person XXXXX,BOOK STORES,CYP
REDACTED,3.29,17/11/2014,Amazon EU,Plastic bucket,DIRECT MARKETING-OTHER DIRECT MARKETERS/NOT ELSEW.,FIRE
REDACTED,63.32,17/11/2014,Amazon  Mktplce EU-UK,Chainsaw safety kit ARCH TMS001,BOOK STORES,E&T
REDACTED,5.44,17/11/2014,WAITROSE 636,Lunch - LLWR meeting,"GROCERY STORES, SUPERMARKETS",E&T
REDACTED,66,17/11/2014,BYTEMARK HOSTING,hosting - the source,COMPUTER SOFTWARE STORES,RESOURCE MANAGEMENT
REDACTED,3.58,17/11/2014,FASTHOSTS INTERNET,Invest in Suffolk website,COMPUTER NETWORK/INFORMATION SERVICES,E&T
REDACTED,164.29,17/11/2014,TESCO STORE 2877,Looked after Children - Provisions,"GROCERY STORES, SUPERMARKETS",CYP
REDACTED,5.46,17/11/2014,SAFFRON WALDEN LAUNDRY,Dry Cleaning,DRY CLEANERS,FIRE
REDACTED,5,17/11/2014,SL-NCP-ADAPTIS ECOM GA,Parking EU visit,AUTOMOBILE PARKING LOTS AND GARAGES,PUBLIC PROTECTION
REDACTED,44,17/11/2014,GREATER ANGLIA T/O,London Tampion solicitor,PASSENGER RAILWAYS,FIRE
REDACTED,104.52,17/11/2014,ELMERS HARDWARE,Brushcutter ARCHTMS001,HARDWARE STORES,E&T
REDACTED,17.98,17/11/2014,HAINES WIPE SHOP,Coloured T-Shirt Rag 10Kg x 1 - NL,MISCELLANEOUS AND SPECIALTY RETAIL STORES,E&T
REDACTED,35.31,17/11/2014,TOOLSTATION LTD,Tools for princes street flooring,HARDWARE STORES,FIRE
REDACTED,3.29,17/11/2014,Amazon EU,Plastic bucket for Wattisham,DIRECT MARKETING-OTHER DIRECT MARKETERS/NOT ELSEW.,FIRE
REDACTED,279.79,17/11/2014,KLM       07424922633455,Return flights from Norwich to Sciphol Airport,ROYAL DUTCH AIRLINES (KLM),PUBLIC PROTECTION
REDACTED,3.29,17/11/2014,Amazon EU,Plastic bucket for Wattisham,DIRECT MARKETING-OTHER DIRECT MARKETERS/NOT ELSEW.,FIRE
REDACTED,13.77,18/11/2014,ASDA SUPERSTORE,refreshments for team day at Felixstowe Ferry,"GROCERY STORES, SUPERMARKETS",CYP
REDACTED,82.95,18/11/2014,WWW.VOUCHEREXPRESS.CO.,Furniture & Equipment Grants,"GIFT, CARD, NOVELTY AND SOUVENIR SHOPS",ACS
MARK HARDINGHAM,92,18/11/2014,TRAVELODGE WEBSITE,Hotel accom x 2 for trip to W Sussex CC in Jan15,TRAVELODGE,FIRE
REDACTED,76.05,18/11/2014,DENMANS ELECTRICAL IPS,cable and materials for IT rack installs,ELECTRICAL PARTS AND EQUIPMENT,FIRE
REDACTED,342.72,18/11/2014,WWW.CIPS.ORG,559/14 - 4 x CIPS exams for XXXXX,"ORGANIZATIONS, MEMBERSHIP-NOT ELSEWHERE CLASSIFIED",RESOURCE MANAGEMENT
REDACTED,26.08,18/11/2014,DRI  kaspersky.,Anti Virus Protection for Children's PC,COMPUTER SOFTWARE STORES,CYP
REDACTED,29.98,18/11/2014,Amazon  Mktplce EU-UK,All purpose cleaner for the BA Room,BOOK STORES,FIRE
REDACTED,12.4,18/11/2014,Amazon  Mktplce EU-UK,Doorbell for Childrens Home,BOOK STORES,CYP
REDACTED,10.4,18/11/2014,SAINSBURYS 0411,Food and drink for sessions,"GROCERY STORES, SUPERMARKETS",CYP
REDACTED,27.92,18/11/2014,TESCO STORE 2166,Food for Groups N-D2014 R1,"GROCERY STORES, SUPERMARKETS",CYP
REDACTED,-5,18/11/2014,TESCO DIRECT,Looked after Children - Equipment purchase refund,MISCELLANEOUS AND SPECIALTY RETAIL STORES,CYP
REDACTED,15.99,18/11/2014,Amazon  Mktplce EU-UK,"Vertical ergonomic optical mouse, requested by TS",BOOK STORES,CYP
REDACTED,9.99,18/11/2014,Amazon  Mktplce EU-UK,5 x spray bottles,BOOK STORES,FIRE
REDACTED,20,19/11/2014,WWW.CP-PLUS.CO.UK,Car Parking @ Ebbsfellet (XXXXX to Gent for SafeIce),AUTOMOBILE PARKING LOTS AND GARAGES,E&T
REDACTED,41.8,19/11/2014,CINEWORLD CLASSIC,Cinema Activity for Looked After Children,"THEATRICAL PRODUCERS(EXCL MOTION PIX),TICKET AGNCY",CYP
REDACTED,250.98,19/11/2014,EUROCHARTS,Appliance equipment,"OFFICE, SCHOOL SUPPLY, AND STATIONERY STORES",FIRE
REDACTED,150,19/11/2014,EUROSTAR INTERNET,XXXXX to Gent (Safe Ice 17th December),PASSENGER RAILWAYS,E&T
REDACTED,416.82,19/11/2014,PC WORLD ONLINE,education laptop for young person XXXXX,ELECTRONIC SALES,CYP
REDACTED,42.86,19/11/2014,Amazon  Mktplce EU-UK,Books for Fire service,BOOK STORES,FIRE
REDACTED,170,19/11/2014,PAYPAL  DIGITALWORL,Fraudulent transaction. Credit against new card,CAMERA AND PHOTOGRAPHIC SUPPLY STORES,E&T
REDACTED,11.22,19/11/2014,B&Q,Tools and Sealant,"BUILDING MATERIALS, LUMBER STORES",E&T
REDACTED,415.83,19/11/2014,DELL PRODUCT,education laptop for young person XXXXX,"COMP PROGRAMING,DATA PRCSNG,INTGRTD SYS DSGN SRVS",CYP
REDACTED,7.39,19/11/2014,TESCO STORES 6179,Food for Groups N-D2014 R2,"GROCERY STORES, SUPERMARKETS",CYP
REDACTED,99,19/11/2014,WWW.HXPAYMENTS.COM,Hotel for EU exchange,TRAVEL AGENCIES AND TOUR OPERATORS,PUBLIC PROTECTION
REDACTED,11,20/11/2014,SUFFOLK COUNTY COUNCIL,Birth Certificate 086VH980/7,GOVERNMENT SERVICES-NOT ELSEWHERE CLASSIFIED,CYP
REDACTED,9.25,20/11/2014,GRO HM PASSPORT OFFICE,Birth Certificate 086VH920/38,GOVERNMENT SERVICES-NOT ELSEWHERE CLASSIFIED,CYP
REDACTED,101.15,20/11/2014,THISTLE POOLE HTL,XXXXX and XXXXX HR Conference,"LODGING-HOTELS,MOTELS,RESORTS-NOT CLASSIFIED",FIRE
REDACTED,152.37,20/11/2014,B&Q,Paint and materials for Princes St new meeting rm,"BUILDING MATERIALS, LUMBER STORES",FIRE
REDACTED,194.96,20/11/2014,HIGH STREET VOUCHE,Vouchers for Focus Group Attendees,"GIFT, CARD, NOVELTY AND SOUVENIR SHOPS",PUBLIC HEALTH
REDACTED,5.45,20/11/2014,WAITROSE 658,Volunteers expenses,"GROCERY STORES, SUPERMARKETS",E&T
REDACTED,250.9,20/11/2014,RYANAIR22 22400000MWJM3X,Flight to Madrid for EU Exchange,RYANAIR,PUBLIC PROTECTION
REDACTED,78.04,20/11/2014,NOVOTEL GENT CENTRUM,Madrid Hotel for EU Exchange,"LODGING-HOTELS,MOTELS,RESORTS-NOT CLASSIFIED",E&T
REDACTED,57.25,20/11/2014,IPSWICH BC,Parking Permits,OTHER SERVICES (NOT ELSEWHERE CLASSIFIED),CYP
REDACTED,75,20/11/2014,EC MAINLINE CO INT,"XXXXX, E'boro-Penrith, XXXXXX mtgs, 2&4 Dec",PASSENGER RAILWAYS,E&T
REDACTED,399.98,20/11/2014,PC WORLD ONLINE,education laptop for young person XXXXX,ELECTRONIC SALES,CYP
REDACTED,-3,20/11/2014,Amazon  Mktplce EU-UK,Credit against PC001 37202,BOOK STORES,FIRE
REDACTED,6.49,20/11/2014,WHSMITH.CO.UK,books for child in need (charity donation) XXXXX,DIRECT MARKETING-COMBINATION CATALOG/RETAIL MERCH.,CYP
REDACTED,3.06,20/11/2014,Amazon  Mktplce EU-UK,Materials for Groups N-D2014 R3,BOOK STORES,CYP
REDACTED,16.66,20/11/2014,Amazon  Mktplce EU-UK,DVD for parental guidance and use in sessions,BOOK STORES,CYP
REDACTED,372.44,20/11/2014,RAFAEL HOTELES ORENSE,Madrid Hotel for EU Exchange,"LODGING-HOTELS,MOTELS,RESORTS-NOT CLASSIFIED",PUBLIC PROTECTION
REDACTED,119.99,21/11/2014,Amazon  Mktplce EU-UK,Madrid Hotel for EU Exchange,BOOK STORES,CYP
REDACTED,178.29,21/11/2014,CNSRVTN RESRCS UK,Archival Polyester Pockets Various sizes - TtT -HT,BOOK STORES,E&T
REDACTED,2.03,21/11/2014,Amazon  Mktplce EU-UK,Materials for Groups N-D2014 R7,BOOK STORES,CYP
REDACTED,2.11,21/11/2014,Amazon  Mktplce EU-UK,Materials for Groups N-D2014 R5,BOOK STORES,CYP
REDACTED,16.66,21/11/2014,Amazon  Mktplce EU-UK,Materials for Groups N-D2014 R4,BOOK STORES,CYP
REDACTED,9.6,21/11/2014,POST OFFICE COUNTER,Post office stamps,POSTAL SERVICES-GOVERNMENT ONLY,E&T
REDACTED,2,21/11/2014,Amazon  Mktplce EU-UK,Materials for Groups N-D2014 R6,BOOK STORES,CYP
REDACTED,43.56,21/11/2014,PAYPAL  SANDRA WEBB,Building the bonds of attachment DVDs,PROFESSIONAL SERVICES-NOT ELSEWHERE CLASSIFIED,CYP
REDACTED,16.4,21/11/2014,Pond5.com,Music for presentation,"COMMERCIAL ART, GRAPHICS, PHOTOGRAPHY",RESOURCE MANAGEMENT
REDACTED,53.73,21/11/2014,AUBYN DAVIES,school uniform for child 0-11 integrated team,MEN'S AND BOY'S CLOTHING AND ACCESSORIES STORES,CYP
REDACTED,120,21/11/2014,WH SMITH,Reception for Lord Lieutenant,NEWS DEALERS AND NEWSSTANDS,CHIEF EXECS
REDACTED,30,21/11/2014,SUFFOLK COUNTY COUNCIL,Passport for SF 232291,GOVERNMENT SERVICES-NOT ELSEWHERE CLASSIFIED,CYP
REDACTED,46.8,21/11/2014,GRO HM PASSPORT OFFICE,Passport for SF 232291,GOVERNMENT SERVICES-NOT ELSEWHERE CLASSIFIED,CYP
REDACTED,53.3,21/11/2014,Amazon  Mktplce EU-UK,Looked after children-equipment purchase/crockery,BOOK STORES,CYP
REDACTED,8.33,21/11/2014,Amazon EU,Emergency Pack cards,DIRECT MARKETING-OTHER DIRECT MARKETERS/NOT ELSEW.,FIRE
REDACTED,240.96,24/11/2014,S E H TREILLE,Accommodation XXXXX and XXXXX 2 Seas Launch,"LODGING-HOTELS,MOTELS,RESORTS-NOT CLASSIFIED",RESOURCE MANAGEMENT
REDACTED,152.74,24/11/2014,Amazon EU,Microsoft office and business 2013,DIRECT MARKETING-OTHER DIRECT MARKETERS/NOT ELSEW.,E&T
REDACTED,298.5,24/11/2014,WWW.BAAF.ORG.UK,Books for Family Finding,DIRECT MARKETING-COMBINATION CATALOG/RETAIL MERCH.,CYP
REDACTED,40.79,24/11/2014,IBIS BIRMINGHAM BORDES,"XXXXX, ASDO Conference, Birmingham","LODGING-HOTELS,MOTELS,RESORTS-NOT CLASSIFIED",CHIEF EXECS
REDACTED,309.63,24/11/2014,WF ELECTRICAL IPSWICH,lights and materials for storesat XXXXX,ELECTRICAL PARTS AND EQUIPMENT,FIRE
REDACTED,8.33,24/11/2014,Amazon EU,Emergency Pack cards,DIRECT MARKETING-OTHER DIRECT MARKETERS/NOT ELSEW.,FIRE
REDACTED,35.42,24/11/2014,NCP NORWICH AIRPORT,Airport parking,AUTOMOBILE PARKING LOTS AND GARAGES,PUBLIC PROTECTION
REDACTED,22.19,24/11/2014,Amazon EU,model kit for 1:1 work with young person,DIRECT MARKETING-OTHER DIRECT MARKETERS/NOT ELSEW.,CYP
REDACTED,170.53,24/11/2014,WF ELECTRICAL IPSWICH,encloser for MDT in Bury's appliance bay,ELECTRICAL PARTS AND EQUIPMENT,FIRE
REDACTED,199.99,24/11/2014,ARGOS DIRECT,Wardrobe for XXXXX,DISCOUNT STORES,CYP
REDACTED,243.9,24/11/2014,S E H TREILLE,Accommodation XXXXX and XXXXX 2 Seas Launch,"LODGING-HOTELS,MOTELS,RESORTS-NOT CLASSIFIED",RESOURCE MANAGEMENT
REDACTED,263.05,24/11/2014,TESCO STORE 2877,Looked after children-provisions,"GROCERY STORES, SUPERMARKETS",CYP
REDACTED,52.5,24/11/2014,EMPARK UK LIMITED,AIRPORT PARKING MULTISTAR INSPECTION ULM,AUTOMOBILE PARKING LOTS AND GARAGES,FIRE
REDACTED,9.16,24/11/2014,Amazon  Mktplce EU-UK,Looked after children-equipment purchase/mugs,BOOK STORES,CYP
REDACTED,69.99,24/11/2014,ARGOS DIRECT,2 drawer bedside cabinet for XXXXX,DISCOUNT STORES,CYP
REDACTED,11.39,24/11/2014,VINCIPARK0590002,Car Park ticket_Lille_2 Seas launch,"BRIDGE AND ROAD FEES, TOLLS",RESOURCE MANAGEMENT
REDACTED,271.67,24/11/2014,PREMIER INN44034360,Overnight accommodation,PREMIER INN,RESOURCE MANAGEMENT
REDACTED,1.46,24/11/2014,POST OFFICE COUNTER,postage,POSTAL SERVICES-GOVERNMENT ONLY,CYP
REDACTED,6.58,24/11/2014,Amazon  Mktplce EU-UK,Looked after children-equipment purchase/kitchen,BOOK STORES,CYP
REDACTED,11.39,24/11/2014,VINCIPARK0590002,Car park ticket day 2 Lille 2 seas launch,"BRIDGE AND ROAD FEES, TOLLS",RESOURCE MANAGEMENT
REDACTED,56.52,24/11/2014,Amazon  Mktplce EU-UK,Highway code books,BOOK STORES,FIRE
REDACTED,10.4,24/11/2014,ARGOS DIRECT,game purchased for child in need (charity donation,DISCOUNT STORES,CYP
REDACTED,12.49,25/11/2014,NS SCHIPHOL,train ticket from schiphol to rotterdam centraal,PASSENGER RAILWAYS,PUBLIC PROTECTION
REDACTED,23.43,25/11/2014,SAINSBURYS 0411,food and drink for sessions,"GROCERY STORES, SUPERMARKETS",CYP
REDACTED,38.23,25/11/2014,B&Q,Paint for Princes St meeting room,"BUILDING MATERIALS, LUMBER STORES",FIRE
REDACTED,171.5,25/11/2014,WP-ADOPTION UK,Books for Family Finding,"ORGANIZATIONS, CHARITABLE AND SOCIAL SERVICES",CYP
REDACTED,10,25/11/2014,NORWICH AIRPORT ADF 1,airport development tax - fee,TRAVEL AGENCIES AND TOUR OPERATORS,PUBLIC PROTECTION
REDACTED,23.4,25/11/2014,GRO HM PASSPORT OFFICE,priority birth certificate 088ST061/5 XXXXX,GOVERNMENT SERVICES-NOT ELSEWHERE CLASSIFIED,CYP
REDACTED,95,25/11/2014,RAMADA DOVER,Proximity Mtg  Overnight Accom KC220- XXXXX,"LODGING-HOTELS,MOTELS,RESORTS-NOT CLASSIFIED",E&T
REDACTED,9.25,25/11/2014,GRO HM PASSPORT OFFICE,birth certificate 059GS983/8 XXXXX,GOVERNMENT SERVICES-NOT ELSEWHERE CLASSIFIED,CYP
REDACTED,15.43,25/11/2014,TESCO STORE 2527,QSA audit lunch,"GROCERY STORES, SUPERMARKETS",FIRE
REDACTED,20.9,25/11/2014,WWW.BAAF.ORG.UK,book for looked after child 086VH907/24,DIRECT MARKETING-COMBINATION CATALOG/RETAIL MERCH.,CYP
REDACTED,26.85,25/11/2014,EDMUNDSON ELECTRICAL,Cable and fittings for Princes street meeting room,ELECTRICAL PARTS AND EQUIPMENT,FIRE
REDACTED,231.27,25/11/2014,citizenM Rotterdam Ope,Hotel accomodation,"LODGING-HOTELS,MOTELS,RESORTS-NOT CLASSIFIED",PUBLIC PROTECTION
REDACTED,12,25/11/2014,KLM,extra checked in baggage,ROYAL DUTCH AIRLINES (KLM),PUBLIC PROTECTION
REDACTED,241.42,25/11/2014,SURVEYMONKEY.COM,Survey monkey subscription,COMPUTER NETWORK/INFORMATION SERVICES,RESOURCE MANAGEMENT
REDACTED,14.44,25/11/2014,NELSON POTTER LTD,Timber for XXXXX  ARCHTMS001,"BUILDING MATERIALS, LUMBER STORES",E&T
REDACTED,23.03,25/11/2014,Amazon  Mktplce EU-UK,fire safety book for office use,BOOK STORES,FIRE
REDACTED,62,25/11/2014,HOLIDAY INN EXPRESS,"Accom, XXXXX mtg, 8 Dec, Bristol",HOLIDAY INNS,E&T
REDACTED,100.6,25/11/2014,EC MAINLINE CO INT,"XXXXX, H'worth-Bristol, SDP mtg, 8 Dec",PASSENGER RAILWAYS,E&T
REDACTED,12,25/11/2014,KLM,Extra checked in baggage,ROYAL DUTCH AIRLINES (KLM),PUBLIC PROTECTION
REDACTED,5.83,26/11/2014,CURRYS SUPERSTORE,Memory stick,ELECTRONIC SALES,E&T
REDACTED,37.49,26/11/2014,MAPLIN EDINBURGH EH11,Lead to connect new laptop to screen,ELECTRONIC SALES,E&T
REDACTED,-170,26/11/2014,PAYPAL  DIGITALWORL35314369001,Credit for fraudulent transaction.,,E&T
REDACTED,253.34,26/11/2014,THE ORWELL HOTEL,QSA TEAM Accomodation,"LODGING-HOTELS,MOTELS,RESORTS-NOT CLASSIFIED",FIRE
REDACTED,0.89,26/11/2014,TESCO STORES 6179,food for Groups N-D2014 R5,"GROCERY STORES, SUPERMARKETS",CYP
REDACTED,104.96,26/11/2014,HIGH STREET VOUCHE,Vouchers for Focus Group Attendees,"GIFT, CARD, NOVELTY AND SOUVENIR SHOPS",PUBLIC HEALTH
REDACTED,9,26/11/2014,SAINSBURYS 0408,QSA team lunch,"GROCERY STORES, SUPERMARKETS",FIRE
REDACTED,23.91,26/11/2014,FACEBOOK B9TMV66F72,recruitment advert for comms officer,ADVERTISING SERVICES,RESOURCE MANAGEMENT
REDACTED,102.15,26/11/2014,FLUDYERS HOTEL,QSA team dinner,"EATING PLACES, RESTAURANTS",FIRE
REDACTED,5.6,26/11/2014,GREGGS S2067,Food for Groups N-D2014 R9,BAKERIES,CYP
REDACTED,11.4,26/11/2014,SAINSBURYS SACAT 0422,food for training session with young infolink,"GROCERY STORES, SUPERMARKETS",CYP
REDACTED,90,27/11/2014,CITB,CSCS tests and cards,"COLLEGES, UNIV, PRO SCHOOLS, JUNIOR COLLEGES",E&T
REDACTED,21.35,27/11/2014,WM MORRISONS,Buffet for CFOA Prevention meeting newmarket,"GROCERY STORES, SUPERMARKETS",FIRE
REDACTED,100,27/11/2014,TESCO STORE 2166,voucher for use at contact centre,"GROCERY STORES, SUPERMARKETS",CYP
REDACTED,218,27/11/2014,THE ABBEY HOTEL GOLF &,Accommodation for Local Authority Nuclear Meeting,"LODGING-HOTELS,MOTELS,RESORTS-NOT CLASSIFIED",PUBLIC PROTECTION
REDACTED,50.4,27/11/2014,GREATERANGLIA.CO.UK,Travel to FloodEx 2014,PASSENGER RAILWAYS,PUBLIC PROTECTION
REDACTED,137.5,27/11/2014,TURNERS(IPSWICH),SERVICE FDS CAR EK63 DXV,AUTOMOTIVE SERVICE SHOPS,FIRE
REDACTED,87.69,27/11/2014,LOCO2.COM,Train from Madrid to Valencia on exchange,TRAVEL AGENCIES AND TOUR OPERATORS,PUBLIC PROTECTION
REDACTED,-5,27/11/2014,TESCO DIRECT,Looked after children - bedding refund,MISCELLANEOUS AND SPECIALTY RETAIL STORES,CYP
REDACTED,137.5,27/11/2014,TURNERS(IPSWICH),SERVICE FDS CAR EO63 SDY,AUTOMOTIVE SERVICE SHOPS,FIRE
REDACTED,21.59,27/11/2014,EDMUNDSON ELECTRICAL,electrical fittings for Princes str meeting room,ELECTRICAL PARTS AND EQUIPMENT,FIRE
REDACTED,12.99,27/11/2014,B&Q,Purchase of Tools,"BUILDING MATERIALS, LUMBER STORES",E&T
REDACTED,7.87,27/11/2014,NS ROTTERDAM BLAAK,train ticket rotterdam blaak to dordrecht,PASSENGER RAILWAYS,PUBLIC PROTECTION
REDACTED,32.98,28/11/2014,Amazon EU,"Cleartex mat, requested by TS",DIRECT MARKETING-OTHER DIRECT MARKETERS/NOT ELSEW.,CYP
REDACTED,9.99,28/11/2014,PAYPAL  RAHEEL FAIZ,Xmas Uniform,CAMERA AND PHOTOGRAPHIC SUPPLY STORES,CYP
REDACTED,90,28/11/2014,PAYPAL  ASDASTORESL,Xmas Uniform,DEPARTMENT STORES,CYP
REDACTED,2.16,28/11/2014,Amazon  Mktplce EU-UK,Christmas Activites for sessions,BOOK STORES,CYP
REDACTED,246.71,28/11/2014,FEEDSAFE/QUINTONS,4 X Gas bottles for Wattisham,PET SHOPS - PET FOODS AND SUPPLIES,FIRE
REDACTED,196,28/11/2014,WWW.FLEXIANT.COM,School Closures Hosting,DIRECT MARKETING-CONTINUITY/SUBSCRIPTION MERCHANTS,RESOURCE MANAGEMENT
REDACTED,4,28/11/2014,Amazon  Mktplce EU-UK,Christmas Activities for sessions,BOOK STORES,CYP
REDACTED,17.31,28/11/2014,FACEBOOK V2RB37AVD2,recruitment advert home first team leader,ADVERTISING SERVICES,RESOURCE MANAGEMENT
REDACTED,17.75,28/11/2014,Amazon EU,Book for XXXXXX Presentation,DIRECT MARKETING-OTHER DIRECT MARKETERS/NOT ELSEW.,CYP
REDACTED,35.58,28/11/2014,WWW.ARTSUPPLIES.CO.UK,Art Supplies C18,"ARTIST SUPPLY STORES, CRAFT SHOPS",E&T
REDACTED,14.94,28/11/2014,PAYPAL  MO LIMITED,Xmas Uniform,CHILDREN'S AND INFANT'S WEAR STORES,CYP
REDACTED,28.79,28/11/2014,FACEBOOK W5CRS62F72,recruitment advert comms officer,ADVERTISING SERVICES,RESOURCE MANAGEMENT
REDACTED,17.56,28/11/2014,FASTHOSTS INTERNET,Website for Invest in Suffolk,COMPUTER NETWORK/INFORMATION SERVICES,E&T
REDACTED,21.67,28/11/2014,PIERROT LTD,Touching the Tide film still stickers,"OFFICE, SCHOOL SUPPLY, AND STATIONERY STORES",E&T
REDACTED,9.99,28/11/2014,PAYPAL  RAHEEL FAIZ,Xmas Uniform,CAMERA AND PHOTOGRAPHIC SUPPLY STORES,CYP
REDACTED,205.5,28/11/2014,WWW.VOUCHEREXPRESS.CO.,Furniture and Equipment Grants,"GIFT, CARD, NOVELTY AND SOUVENIR SHOPS",ACS
REDACTED,21.99,28/11/2014,PAYPAL  YOURSCLOTHI,Xmas Uniform,WOMEN'S READY TO WEAR STORES,CYP
REDACTED,2.96,01/12/2014,B&Q,Paint test pots,"BUILDING MATERIALS, LUMBER STORES",E&T
REDACTED,108.12,01/12/2014,TESCO STORE 2877,Looked after children - provisions,"GROCERY STORES, SUPERMARKETS",CYP
REDACTED,29.42,01/12/2014,FACEBOOK 3RHPQ6SE72,Recruitment advert comms officer,ADVERTISING SERVICES,RESOURCE MANAGEMENT
REDACTED,37,01/12/2014,GRO HM PASSPORT OFFICE,4 x birth certs XXXXX 059GS918/12,GOVERNMENT SERVICES-NOT ELSEWHERE CLASSIFIED,CYP
REDACTED,15,01/12/2014,ARGOS LTD,Looked after Children - Equipment purchase,DISCOUNT STORES,CYP
REDACTED,91.99,01/12/2014,ARGOS RETAIL GROUP,Looked after Children - Christmas Presents,DISCOUNT STORES,CYP
REDACTED,178.8,01/12/2014,CLUB QUARTERS LINC,OVERNIGHT STAY FOLLOWING LLG AWARDS-T EARL,"LODGING-HOTELS,MOTELS,RESORTS-NOT CLASSIFIED",RESOURCE MANAGEMENT
REDACTED,23.33,01/12/2014,ARGOS LTD,Looked after Children - equipment purchase,DISCOUNT STORES,CYP
REDACTED,66,01/12/2014,BRIT ASS FOR ADOPT/FOS,Vice Panel Chairs Training with BAAF,MISCELLANEOUS GENERAL MERCHANDISE,CYP
REDACTED,178.8,01/12/2014,CLUB QUARTERS LINC,OVERNIGHT STAY FOLLOWING LLG AWARDS-XXXXX,"LODGING-HOTELS,MOTELS,RESORTS-NOT CLASSIFIED",RESOURCE MANAGEMENT
REDACTED,119.88,01/12/2014,Amazon  Mktplce EU-UK,floor cushions for sessions in playroom,BOOK STORES,CYP
REDACTED,178.8,01/12/2014,CLUB QUARTERS LINC,OVERNIGHT STAY FOLLOWING LLG AWARDS-XXXXX,"LODGING-HOTELS,MOTELS,RESORTS-NOT CLASSIFIED",RESOURCE MANAGEMENT
REDACTED,158.08,01/12/2014,FACEBK  TMGEM6E9B2,free childcare 2 year old,ADVERTISING SERVICES,RESOURCE MANAGEMENT
REDACTED,60.7,01/12/2014,WWW.PARKINGEYE.CO.UK,Parking Fine re. TL (CF id: 338070),AUTOMOBILE PARKING LOTS AND GARAGES,CYP
REDACTED,1.79,01/12/2014,FASTHOSTS INTERNET,Web site for Invest in Suffolk,COMPUTER NETWORK/INFORMATION SERVICES,E&T
REDACTED,165,01/12/2014,IVY HOUSE COUNTRY HOTE,2xB&B Lowestoft Peer Review XXXXX,"LODGING-HOTELS,MOTELS,RESORTS-NOT CLASSIFIED",ACS
REDACTED,12,01/12/2014,WWW.NORFOLK.GOV.UK,COPY OF URGENT BIRTH CERTIFICATE (40244),GOVERNMENT SERVICES-NOT ELSEWHERE CLASSIFIED,RESOURCE MANAGEMENT
REDACTED,16.62,01/12/2014,FACEBOOK 8A9U67NVD2,recruitment advert home first team leader,ADVERTISING SERVICES,RESOURCE MANAGEMENT
REDACTED,178.8,01/12/2014,CLUB QUARTERS LINC,OVERNIGHT STAY FOLLOWING LLG AWARDS-XXXXX,"LODGING-HOTELS,MOTELS,RESORTS-NOT CLASSIFIED",RESOURCE MANAGEMENT
REDACTED,82.5,01/12/2014,IVY HOUSE COUNTRY HOTE,1xB&B Lowestoft Peer Review XXXXX,"LODGING-HOTELS,MOTELS,RESORTS-NOT CLASSIFIED",ACS
REDACTED,37.31,01/12/2014,SCREWFIX,"Gloves, sanding disks and Danish oil","BUILDING MATERIALS, LUMBER STORES",E&T
REDACTED,104.12,01/12/2014,ARGOS LTD,Looked after Children - Christmas Presents,DISCOUNT STORES,CYP
REDACTED,119.92,01/12/2014,ARGOS RETAIL GROUP,Looked after Children - Christmas Presents,DISCOUNT STORES,CYP
REDACTED,49.36,02/12/2014,SAINSBURYS 2163,Xmas decorations for the groups,"GROCERY STORES, SUPERMARKETS",CYP
REDACTED,114,02/12/2014,FRAMLINGHAM MEDICA,LGV medical,"DOCTORS, (NOT ELSEWHERE CLASSIFIED)",FIRE
REDACTED,10.79,02/12/2014,ASDA  STORES 4218,Snack for all groups,"GROCERY STORES, SUPERMARKETS",CYP
REDACTED,500,02/12/2014,WWW.ICO.GOV.UK,Annual ICO Registration as Data Controllers,GOVERNMENT SERVICES-NOT ELSEWHERE CLASSIFIED,RESOURCE MANAGEMENT
REDACTED,40,02/12/2014,PAYPAL  BOOK PEOPLE,Xmas presents for children,BOOK STORES,CYP
REDACTED,17.88,02/12/2014,FACEBOOK DWXFT6EF72,Rec advert Comms officer,ADVERTISING SERVICES,RESOURCE MANAGEMENT
REDACTED,40,02/12/2014,PAYPAL  BOOK PEOPLE,Xmas presents for the children,BOOK STORES,CYP
REDACTED,7.71,02/12/2014,SAINSBURYS 0411,Food and drink for sessions,"GROCERY STORES, SUPERMARKETS",CYP
REDACTED,8.75,02/12/2014,SPAR FELIXSTOWE,Refreshments for Targeted Group work meeting,"GROCERY STORES, SUPERMARKETS",CYP
REDACTED,21.49,02/12/2014,Amazon  Mktplce EU-UK,Model Magic Bucket for AS Team,BOOK STORES,CYP
REDACTED,13.31,02/12/2014,HALFORDS 0883,HI VIS PAINT AND ETCH PRIMER,BICYCLE SHOPS-SALES AND SERVICE,FIRE
REDACTED,27.8,02/12/2014,FARNELL INTERNET,Trans for hydrants flow meter,ELECTRICAL PARTS AND EQUIPMENT,FIRE
REDACTED,5,02/12/2014,GOV.UK/DART-CHARGE,Dart Charge - Proximity XXXXX KC220,"BRIDGE AND ROAD FEES, TOLLS",E&T
REDACTED,28,02/12/2014,DSA THEORY TEST,Theory test booked by XXXXX,GOVERNMENT SERVICES-NOT ELSEWHERE CLASSIFIED,FIRE
REDACTED,58.39,02/12/2014,ASDA HOME SHOPPING,Food for Groups N-D2014 R10,"GROCERY STORES, SUPERMARKETS",CYP
REDACTED,24.99,02/12/2014,STAPLES UK,LABEL PRINTER,"OFFICE, SCHOOL SUPPLY, AND STATIONERY STORES",FIRE
REDACTED,18.5,02/12/2014,SAINSBURYS 0411,Cleaning materials for centre,"GROCERY STORES, SUPERMARKETS",CYP
REDACTED,5,02/12/2014,COMPANIES HOUSE,ONLINE CHECK OF COMPANIES HOUSE (40078),GOVERNMENT SERVICES-NOT ELSEWHERE CLASSIFIED,RESOURCE MANAGEMENT
REDACTED,18.48,02/12/2014,TESCO STORES 5123,Looked after Children - Christmas Cake ingredients,"GROCERY STORES, SUPERMARKETS",CYP
REDACTED,40,02/12/2014,DSA THEORY TEST,Theory text booked by XXXXX,GOVERNMENT SERVICES-NOT ELSEWHERE CLASSIFIED,FIRE
REDACTED,28,02/12/2014,DSA THEORY TEST,Theory text booked by XXXXX,GOVERNMENT SERVICES-NOT ELSEWHERE CLASSIFIED,FIRE
REDACTED,45,02/12/2014,EC MAINLINE CO INT,"Train to Penrith for TOG meeting, 11th December",PASSENGER RAILWAYS,E&T
REDACTED,36,02/12/2014,PAYPAL  BOOK PEOPLE,Xmas presents for the children,BOOK STORES,CYP
REDACTED,42.92,02/12/2014,B & Q,Flooring for XXXXX,"BUILDING MATERIALS, LUMBER STORES",FIRE
REDACTED,18,03/12/2014,EA HAZARDOUS WASTE-DOM,XXXXX REG OEU568,GOVERNMENT SERVICES-NOT ELSEWHERE CLASSIFIED,FIRE
REDACTED,18,03/12/2014,EA HAZARDOUS WASTE-DOM,XXXXX REG OAB328,GOVERNMENT SERVICES-NOT ELSEWHERE CLASSIFIED,FIRE
REDACTED,139.4,03/12/2014,POUNDLAND 1456,books for children,DISCOUNT STORES,CYP
REDACTED,18,03/12/2014,EA HAZARDOUS WASTE-DOM,SAXMUNDHAM,GOVERNMENT SERVICES-NOT ELSEWHERE CLASSIFIED,FIRE
REDACTED,18,03/12/2014,EA HAZARDOUS WASTE-DOM,XXXXX REG OAB500,GOVERNMENT SERVICES-NOT ELSEWHERE CLASSIFIED,FIRE
REDACTED,18,03/12/2014,EA HAZARDOUS WASTE-DOM,XXXXX REG OAB214,GOVERNMENT SERVICES-NOT ELSEWHERE CLASSIFIED,FIRE
REDACTED,18,03/12/2014,EA HAZARDOUS WASTE-DOM,ELMSWELL REG OEU560,GOVERNMENT SERVICES-NOT ELSEWHERE CLASSIFIED,FIRE
REDACTED,18,03/12/2014,EA HAZARDOUS WASTE-DOM,HOLBROOK REG OAB247,GOVERNMENT SERVICES-NOT ELSEWHERE CLASSIFIED,FIRE
REDACTED,18,03/12/2014,EA HAZARDOUS WASTE-DOM,IXWORTH REG OEU564,GOVERNMENT SERVICES-NOT ELSEWHERE CLASSIFIED,FIRE
REDACTED,5.6,03/12/2014,GREGGS S2067,Food for Groups N-D2014 R11,BAKERIES,CYP
REDACTED,18,03/12/2014,EA HAZARDOUS WASTE-DOM,ORFORD REG OAB267,GOVERNMENT SERVICES-NOT ELSEWHERE CLASSIFIED,FIRE
REDACTED,18,03/12/2014,EA HAZARDOUS WASTE-DOM,LEISTON REG OAB311,GOVERNMENT SERVICES-NOT ELSEWHERE CLASSIFIED,FIRE
REDACTED,6.3,03/12/2014,WATTISHAM SVS SHOP,Packed meal for course delegate,CATERERS,FIRE
REDACTED,18,03/12/2014,EA HAZARDOUS WASTE-DOM,LONG MELFORD REG OEU517,GOVERNMENT SERVICES-NOT ELSEWHERE CLASSIFIED,FIRE
REDACTED,1.62,03/12/2014,Amazon  Mktplce EU-UK,Glue Pens for Fostering,BOOK STORES,CYP
REDACTED,9,03/12/2014,Amazon  Mktplce EU-UK,Materials for Groups N-D2014 R12,BOOK STORES,CYP
REDACTED,2.07,03/12/2014,Amazon  Mktplce EU-UK,Craft Supplies for Fostering,BOOK STORES,CYP
REDACTED,3.2,03/12/2014,Amazon  Mktplce EU-UK,Craft Supplies for Fostering,BOOK STORES,CYP
REDACTED,25.97,03/12/2014,STAPLES UK,Equipment for events,"OFFICE, SCHOOL SUPPLY, AND STATIONERY STORES",RESOURCE MANAGEMENT
REDACTED,18,03/12/2014,EA HAZARDOUS WASTE-DOM,ALDEBURGH REG OAB279,GOVERNMENT SERVICES-NOT ELSEWHERE CLASSIFIED,FIRE
REDACTED,18,03/12/2014,EA HAZARDOUS WASTE-DOM,EYE REG OAB728,GOVERNMENT SERVICES-NOT ELSEWHERE CLASSIFIED,FIRE
REDACTED,18,03/12/2014,EA HAZARDOUS WASTE-DOM,WICKHAMBROOK REG OEU540,GOVERNMENT SERVICES-NOT ELSEWHERE CLASSIFIED,FIRE
REDACTED,18,03/12/2014,EA HAZARDOUS WASTE-DOM,REYDON REG OIT05,GOVERNMENT SERVICES-NOT ELSEWHERE CLASSIFIED,FIRE
REDACTED,18,03/12/2014,EA HAZARDOUS WASTE-DOM,STOWMARKET REG OEU482,GOVERNMENT SERVICES-NOT ELSEWHERE CLASSIFIED,FIRE
REDACTED,18,03/12/2014,EA HAZARDOUS WASTE-DOM,BECCLES REG OAB504,GOVERNMENT SERVICES-NOT ELSEWHERE CLASSIFIED,FIRE
REDACTED,18,03/12/2014,EA HAZARDOUS WASTE-DOM,FRAMLINGHAM REG OAB254,GOVERNMENT SERVICES-NOT ELSEWHERE CLASSIFIED,FIRE
REDACTED,18,03/12/2014,EA HAZARDOUS WASTE-DOM,DEBENHAM REG OAB729,GOVERNMENT SERVICES-NOT ELSEWHERE CLASSIFIED,FIRE
REDACTED,243.74,03/12/2014,ARGOS RETAIL GROUP,Furniture and Equipment XXXXX.,DISCOUNT STORES,ACS
REDACTED,20,03/12/2014,OYSTER AUTOTOPUP,Oyster Card Top-up,PASSENGER RAILWAYS,PUBLIC PROTECTION
REDACTED,18,03/12/2014,EA HAZARDOUS WASTE-DOM,HALESWORTH REG OAB387,GOVERNMENT SERVICES-NOT ELSEWHERE CLASSIFIED,FIRE
REDACTED,18,03/12/2014,EA HAZARDOUS WASTE-DOM,MILDENHALL REG OEU572,GOVERNMENT SERVICES-NOT ELSEWHERE CLASSIFIED,FIRE
REDACTED,18,03/12/2014,EA HAZARDOUS WASTE-DOM,WATTISHAM REG OIC275,GOVERNMENT SERVICES-NOT ELSEWHERE CLASSIFIED,FIRE
REDACTED,18,03/12/2014,EA HAZARDOUS WASTE-DOM,PRINCES ST REG OAB239,GOVERNMENT SERVICES-NOT ELSEWHERE CLASSIFIED,FIRE
REDACTED,18,03/12/2014,EA HAZARDOUS WASTE-DOM,SOUTHWOLD REG OAB342,GOVERNMENT SERVICES-NOT ELSEWHERE CLASSIFIED,FIRE
REDACTED,13.3,03/12/2014,JOHNSONS 1699,cleaning undress uniform,DRY CLEANERS,FIRE
REDACTED,18,03/12/2014,EA HAZARDOUS WASTE-DOM,STRADBROOK REG OAB512,GOVERNMENT SERVICES-NOT ELSEWHERE CLASSIFIED,FIRE
REDACTED,4.52,04/12/2014,Amazon  Mktplce EU-UK,Craft Supplies for Fostering,BOOK STORES,CYP
REDACTED,86.61,04/12/2014,ARGOS RETAIL GROUP,Looked after Children - Christmas Presents,DISCOUNT STORES,CYP
REDACTED,59.88,04/12/2014,POST OFFICE COUNTER,"100 x 2nd Class Stamps
Signed For Letters x 4",POSTAL SERVICES-GOVERNMENT ONLY,CYP
REDACTED,40,04/12/2014,DSA THEORY TEST,Theory test booked by XXXXX,GOVERNMENT SERVICES-NOT ELSEWHERE CLASSIFIED,FIRE
REDACTED,20.83,04/12/2014,Amazon EU,Ball pool for baby play area,DIRECT MARKETING-OTHER DIRECT MARKETERS/NOT ELSEW.,CYP
REDACTED,3.64,04/12/2014,TESCO STORES 2848,cooking ingredients,"GROCERY STORES, SUPERMARKETS",CYP
REDACTED,7.07,04/12/2014,Amazon  Mktplce EU-UK,Craft Paper for Fostering,BOOK STORES,CYP
REDACTED,20.31,04/12/2014,FACEBOOK SVXSY6WUD2,recruitment advert Customer service advisor,ADVERTISING SERVICES,RESOURCE MANAGEMENT
REDACTED,2.49,04/12/2014,Amazon  Mktplce EU-UK,Craft Paper for Fostering,BOOK STORES,CYP
REDACTED,263.83,04/12/2014,Amazon Web Services,onesuffolk hosting,BUSINESS SERVICES-NOT ELSEWHERE CLASSIFIED,RESOURCE MANAGEMENT
REDACTED,19.12,04/12/2014,ARGOS RETAIL GROUP,Stair Gate and delivery.,DISCOUNT STORES,CYP
REDACTED,42,04/12/2014,TRINITY MIRROR,Magazine Subscription for Looked After Child,ADVERTISING SERVICES,CYP
REDACTED,55.41,04/12/2014,Amazon  Mktplce EU-UK,Looked after Children - Christmas Presents,BOOK STORES,CYP
REDACTED,4.4,04/12/2014,Amazon  Mktplce EU-UK,Christmas Stickers for Fostering,BOOK STORES,CYP
REDACTED,105.41,04/12/2014,ARGOS RETAIL GROUP,Furniture and Equipment XXXXX.,DISCOUNT STORES,ACS
REDACTED,10,04/12/2014,CO-OP FOOD,Mince pies for station reunion,"GROCERY STORES, SUPERMARKETS",FIRE
REDACTED,19.99,04/12/2014,Amazon  Mktplce EU-UK,The Essential Baby Care DVD Set,BOOK STORES,CYP
REDACTED,55.5,04/12/2014,GRO HM PASSPORT OFFICE,6 x birth certs XXXXX 059GS1003/5,GOVERNMENT SERVICES-NOT ELSEWHERE CLASSIFIED,CYP
REDACTED,84.14,04/12/2014,ARGOS LTD,Looked after Children - Christmas Presents,DISCOUNT STORES,CYP
REDACTED,9.25,05/12/2014,GRO HM PASSPORT OFFICE,Birth Certificate 086VH932/10,GOVERNMENT SERVICES-NOT ELSEWHERE CLASSIFIED,CYP
REDACTED,-60,05/12/2014,WWW.DRIMBEAUTY.COM0203 7000733,Credit against Fraudulant Activity,,PUBLIC HEALTH
REDACTED,8.52,05/12/2014,DENMANS ELECTRICAL IPS,joint box and glands for XXXXX,ELECTRICAL PARTS AND EQUIPMENT,FIRE
REDACTED,7.7,05/12/2014,Amazon  Mktplce EU-UK,Looked after Children - Children's Activity,BOOK STORES,CYP
REDACTED,7.9,05/12/2014,PAYPAL  A2BSHOPPING,Hand Gel for Looked After Children,"DURABLE GOODS, NOT ELSEWHERE CLASSIFIED",CYP
REDACTED,14.44,05/12/2014,PAYPAL  MO LIMITED,Xmas uniform,CHILDREN'S AND INFANT'S WEAR STORES,CYP
REDACTED,15,05/12/2014,EXCEL LONDON,Car park cost for attending Flood conference ,AUTOMOBILE PARKING LOTS AND GARAGES,FIRE
REDACTED,188.93,05/12/2014,ARGOS RETAIL GROUP,Order number AD080924031 (equipment for team),DISCOUNT STORES,CYP
REDACTED,31.17,05/12/2014,B&Q,timber for princes str meeting room,"BUILDING MATERIALS, LUMBER STORES",FIRE
REDACTED,30.95,05/12/2014,PAYPAL  ASDASTORESL,Xmas uniform,DEPARTMENT STORES,CYP
MARK HARDINGHAM,53.65,05/12/2014,TRAVELODGE WEBSITE,Hotel in Nottingham for FRS Council meeting,TRAVELODGE,FIRE
REDACTED,12.6,05/12/2014,WILKO RETAIL LIMIT,Chill chat & craft materials,HOUSEHOLD APPLIANCE STORES,CYP
REDACTED,125.99,05/12/2014,POST OFFICE SHOP,Stamps,RECREATION SERVICES (NOT ELSEWHERE CLASSIFIED),CYP
REDACTED,17.45,05/12/2014,FACEBOOK QVU2X62VD2,Rec adverts Customer Service advisors,ADVERTISING SERVICES,RESOURCE MANAGEMENT
REDACTED,53,05/12/2014,POST OFFICE COUNTER,Postage,POSTAL SERVICES-GOVERNMENT ONLY,CYP
REDACTED,38.94,05/12/2014,ARGOS RETAIL GROUP,folding table for recruitment events,DISCOUNT STORES,CYP
REDACTED,114.71,05/12/2014,TRAVELODGE WEBSITE,Over-night accommondation for Cllr XXXXX.,TRAVELODGE,RESOURCE MANAGEMENT
REDACTED,3,08/12/2014,ASDA STORES LTD 5729,Balloons for childrens celebration,"GROCERY STORES, SUPERMARKETS",CYP
REDACTED,79,08/12/2014,Amazon Prime,Signed up for Amazon Prime in error.  Credit due,DIRECT MARKETING-CONTINUITY/SUBSCRIPTION MERCHANTS,CYP
REDACTED,88.67,08/12/2014,ARGOS RETAIL GROUP,Looked after Children - Christmas Presents,DISCOUNT STORES,CYP
REDACTED,29.8,08/12/2014,W M MORRISONS PLC,Food for childrens celebration,"GROCERY STORES, SUPERMARKETS",CYP
REDACTED,724.7,08/12/2014,ARGOS RETAIL GROUP,Furniture and Equipment XXXXX.,DISCOUNT STORES,ACS
REDACTED,15.11,08/12/2014,RS COMPONENTS,MULTIMODE RELAY,ELECTRICAL PARTS AND EQUIPMENT,FIRE
REDACTED,-2.99,08/12/2014,WHSMITH.CO.UK,refund as books out of stock C0-11 912/6,DIRECT MARKETING-COMBINATION CATALOG/RETAIL MERCH.,CYP
REDACTED,132.04,08/12/2014,TESCO STORE 2877,Looked after children - provisions,"GROCERY STORES, SUPERMARKETS",CYP
REDACTED,8.32,08/12/2014,ARGOS LTD,Looked after Children - Christmas Presents,DISCOUNT STORES,CYP
REDACTED,12.12,08/12/2014,Amazon  Mktplce EU-UK,Looked after Children - Christmas Presents,BOOK STORES,CYP
REDACTED,16.73,08/12/2014,FACEBOOK PHKWY6WUD2,rec advert customer service advisors,ADVERTISING SERVICES,RESOURCE MANAGEMENT
REDACTED,190,08/12/2014,ACCESS DISPLAYS LTD,7 Panel Display unit,ADVERTISING SERVICES,E&T
REDACTED,18.29,08/12/2014,Amazon  Mktplce EU-UK,Looked after children-equip purchase walls sticker,BOOK STORES,CYP
REDACTED,213.94,08/12/2014,ARGOS LTD,"Tv, crockery,lamp, scales, bulbs, stoage set",DISCOUNT STORES,ACS
REDACTED,24.56,08/12/2014,Amazon  Mktplce EU-UK,YALE SMALL KEY BOX,BOOK STORES,RESOURCE MANAGEMENT
REDACTED,11.98,08/12/2014,WWW.CARTRIDGESHOP.CO.U,Tape Cassette for Brother Labeller,OFFICE PHOTOGRAPHIC PHOTOCOPY & MICROFILM EQUIPMT.,PUBLIC PROTECTION
REDACTED,81.38,08/12/2014,CURVE MOTION,Activity Group Rollerskating,TOURIST ATTRACTIONS AND EXHIBITS,CYP
REDACTED,46.24,08/12/2014,Amazon EU,Looked after Children - Christmas Presents,DIRECT MARKETING-OTHER DIRECT MARKETERS/NOT ELSEW.,CYP
REDACTED,-4.99,08/12/2014,WHSMITH.CO.UK,refund as books out of stock C0-11 912/6,DIRECT MARKETING-COMBINATION CATALOG/RETAIL MERCH.,CYP
REDACTED,54,08/12/2014,IPSWICH ENTERTAINMENT,Looked after childre-activity/panto,GOVERNMENT SERVICES-NOT ELSEWHERE CLASSIFIED,CYP
REDACTED,657.94,08/12/2014,ARGOS RETAIL GROUP,Furniture and Equipment XXXXX.,DISCOUNT STORES,ACS
REDACTED,378.72,08/12/2014,ARGOS RETAIL GROUP,Furniture and Equipment XXXXX.,DISCOUNT STORES,ACS
REDACTED,8.99,08/12/2014,WH SMITH,Magazines for therapeutic intervention,NEWS DEALERS AND NEWSSTANDS,CYP
REDACTED,5.49,08/12/2014,Amazon  Mktplce EU-UK,Blackberry Car Charger,BOOK STORES,PUBLIC PROTECTION
REDACTED,6.58,08/12/2014,Amazon  Mktplce EU-UK,Looked after children - equipment purchase/kitchen,BOOK STORES,CYP
REDACTED,21.33,09/12/2014,ASDA  STORES 4218,Snack for all groups,"GROCERY STORES, SUPERMARKETS",CYP
REDACTED,17.5,09/12/2014,ASDA  STORES 4218,Cleaning Products for Centre,"GROCERY STORES, SUPERMARKETS",CYP
REDACTED,22,09/12/2014,NEXT DIRECTORY,Community Parent Expenses,FAMILY CLOTHING STORES,CYP
REDACTED,48.74,09/12/2014,Amazon EU,stylus for iPad,DIRECT MARKETING-OTHER DIRECT MARKETERS/NOT ELSEW.,PUBLIC PROTECTION
REDACTED,40,09/12/2014,DSA THEORY TEST,Theory text booked by XXXXX,GOVERNMENT SERVICES-NOT ELSEWHERE CLASSIFIED,FIRE
REDACTED,40,09/12/2014,DSA THEORY TEST,Theory test booked by XXXXX,GOVERNMENT SERVICES-NOT ELSEWHERE CLASSIFIED,FIRE
REDACTED,22,09/12/2014,NEXT DIRECTORY,Community Parent Expenses,FAMILY CLOTHING STORES,CYP
REDACTED,22,09/12/2014,NEXT DIRECTORY,Community Parent Expenses,FAMILY CLOTHING STORES,CYP
REDACTED,13.59,09/12/2014,Amazon  Mktplce EU-UK,Looked after children-equip purchase/pictures,BOOK STORES,CYP
REDACTED,368.72,09/12/2014,SCREWFIX DIRECT,door closer and dorgards,"BUILDING MATERIALS, LUMBER STORES",FIRE
REDACTED,18,09/12/2014,WWW.GOAPE.CO.UK,006CD036 - voucher for mother of XXXXX.,RECREATIONAL AND SPORTING CAMPS,CYP
REDACTED,6,09/12/2014,SAINSBURYS 0411,disposable catering supplies,"GROCERY STORES, SUPERMARKETS",CYP
REDACTED,205.5,09/12/2014,WWW.VOUCHEREXPRESS.CO.,Furniture & Equipment Grants,"GIFT, CARD, NOVELTY AND SOUVENIR SHOPS",ACS
REDACTED,9.41,09/12/2014,SAINSBURYS 0411,food and drink for sessions,"GROCERY STORES, SUPERMARKETS",CYP
REDACTED,18,09/12/2014,WWW.GOAPE.CO.UK,006CD036 - Vocuher for XXXXX.,RECREATIONAL AND SPORTING CAMPS,CYP
REDACTED,309.64,10/12/2014,WF ELECTRICAL IPSWICH,modular fittings for princes street etc,ELECTRICAL PARTS AND EQUIPMENT,FIRE
REDACTED,15.05,10/12/2014,WAGAMAMA,Dinner in London - RWPG meeting,"EATING PLACES, RESTAURANTS",E&T
REDACTED,14.99,10/12/2014,Amazon  Mktplce EU-UK,Lockable aluminium tool box.,BOOK STORES,CYP
REDACTED,64.18,10/12/2014,STAPLES UK,2015 diaries for training department,"OFFICE, SCHOOL SUPPLY, AND STATIONERY STORES",FIRE
REDACTED,10.24,10/12/2014,WAITROSE 140,disposable catering supplies,"GROCERY STORES, SUPERMARKETS",CYP
REDACTED,42.5,10/12/2014,ARCHIMEDES TRADING LTD,Bowsaw Protector x25 - XXXXX,SCHOOLS & EDUCATIONAL SVC-NOT ELSEWHERE CLASSIFIED,E&T
REDACTED,59.45,10/12/2014,WWW.WORKSHOPPING.CO.UK,ST/Edge Garden Shear x5 - XXXXX,"AUTOMOTIVE PARTS, ACCESSORIES STORES",E&T
REDACTED,104.17,10/12/2014,IBIS LONDON WEMBLEY,Hotel in London -for RWPG meeting,"LODGING-HOTELS,MOTELS,RESORTS-NOT CLASSIFIED",E&T
REDACTED,35.16,10/12/2014,ASHBROOKROO,Heavy Duty Bucket x 5 - XXXXX,HOME SUPPLY WAREHOUSE STORES,E&T
REDACTED,28.32,10/12/2014,Amazon EU,"Baby Its You, DVD x 2, requested by XXXXX",DIRECT MARKETING-OTHER DIRECT MARKETERS/NOT ELSEW.,CYP
REDACTED,24.77,10/12/2014,Amazon  Mktplce EU-UK,Looked after children- equipment purchase,BOOK STORES,CYP
REDACTED,14.99,10/12/2014,Amazon  Mktplce EU-UK,EE 4G card for XXXXX i-pad,BOOK STORES,CYP
REDACTED,40,11/12/2014,DSA THEORY TEST,Theory test booked by XXXXX,GOVERNMENT SERVICES-NOT ELSEWHERE CLASSIFIED,FIRE
REDACTED,102.92,11/12/2014,HIGH STREET VOUCHE,Vouchers for Focus Group Attendees,"GIFT, CARD, NOVELTY AND SOUVENIR SHOPS",PUBLIC HEALTH
REDACTED,2.03,11/12/2014,TESCO STORES 6179,Materials for Groups N-D2014 R14,"GROCERY STORES, SUPERMARKETS",CYP
REDACTED,10.2,11/12/2014,FAST KEY SERVICES,(XXXXX)12+Integrated Team S/W Locker Keys,BUSINESS SERVICES-NOT ELSEWHERE CLASSIFIED,CYP
REDACTED,40,11/12/2014,DSA THEORY TEST,Theory test booked by XXXXX,GOVERNMENT SERVICES-NOT ELSEWHERE CLASSIFIED,FIRE
REDACTED,7,11/12/2014,SUFFOLK COUNTY COUNCIL,URGENT COPY OF BIRTH CERTIFICATE (40022),GOVERNMENT SERVICES-NOT ELSEWHERE CLASSIFIED,RESOURCE MANAGEMENT
REDACTED,7.5,11/12/2014,THE WORKS,Materials for Groups N-D2014 R13,BOOK STORES,CYP
REDACTED,23.99,11/12/2014,INTERFLORA BRITISH UNI,Flowers retirement member Health & Wellbeing Board,FLORISTS,PUBLIC HEALTH
REDACTED,9.15,11/12/2014,KITCHEN KAVE LTD,Materials for Groups N-D2014 R16,HOUSEHOLD APPLIANCE STORES,CYP
REDACTED,27.89,11/12/2014,WWW.RYMAN.CO.UK,Photograph folder for archiving,"OFFICE, SCHOOL SUPPLY, AND STATIONERY STORES",CYP
REDACTED,25.94,11/12/2014,SAINSBURYS SACAT 2163,Chill & Chat xmas craft (cooking ),"GROCERY STORES, SUPERMARKETS",CYP
REDACTED,20,11/12/2014,GOV.UK/DART-CHARGE,Dart Charge Account for XXXX Pool Vehicles -XXXXX,"BRIDGE AND ROAD FEES, TOLLS",PUBLIC PROTECTION
REDACTED,5.1,11/12/2014,CAFFE NERO,"Breakfast, RWPG meeting, London","LODGING-HOTELS,MOTELS,RESORTS-NOT CLASSIFIED",E&T
REDACTED,223.94,11/12/2014,ARGOS RETAIL GROUP,Furniture and Equipment XXXXX.,DISCOUNT STORES,ACS
REDACTED,13.59,11/12/2014,PAPERCUTZLT,Glossy paper for legal work - XXXXX,"OFFICE, SCHOOL SUPPLY, AND STATIONERY STORES",PUBLIC PROTECTION
REDACTED,5.24,11/12/2014,PRET A MANGER,Dinner for train - return from RWPG,"EATING PLACES, RESTAURANTS",E&T
REDACTED,70.98,11/12/2014,KIDDICARE.COM LTD,stroller and stairgate for XXXXX,MISCELLANEOUS AND SPECIALTY RETAIL STORES,CYP
REDACTED,6,11/12/2014,TESCO STORE 2166,Food for Groups N-D2014 R15,"GROCERY STORES, SUPERMARKETS",CYP
REDACTED,7.92,11/12/2014,Amazon EU,Protect ID self-inking stamp for legal work - XXXXX,DIRECT MARKETING-OTHER DIRECT MARKETERS/NOT ELSEW.,PUBLIC PROTECTION
REDACTED,73.8,12/12/2014,MAXWELLAMEN,Chelwood Grass/Leaf Rake x3 -XXXXX,LAWN AND GARDEN SUPPLY STORES,E&T
REDACTED,17.5,12/12/2014,Amazon  Mktplce EU-UK,Books craft materials,BOOK STORES,CYP
REDACTED,21.2,12/12/2014,HOLIDAY INN IPSWIC,Meeting room hire,"LODGING-HOTELS,MOTELS,RESORTS-NOT CLASSIFIED",CYP
REDACTED,38.97,12/12/2014,ARGOS,Looked after Children - Christmas Presents,DISCOUNT STORES,CYP
REDACTED,39.9,12/12/2014,Amazon  Mktplce EU-UK,Mini LCD Projector for Bus Dev Team use.,BOOK STORES,ACS
REDACTED,295.95,12/12/2014,BOOKERECOMM,Looked after children - provisions for the home,CATERERS,CYP
REDACTED,109.5,12/12/2014,CHELTENHAM GARDEN,Telescopic Ratchet x 3 - XXXXX,LAWN AND GARDEN SUPPLY STORES,E&T
REDACTED,11.47,12/12/2014,BARRY CARTER MOTOR PRO,Oil Filter Wrench x1,"AUTOMOTIVE PARTS, ACCESSORIES STORES",E&T
REDACTED,26.61,12/12/2014,WWW.WORKSHOPPING.CO.UK,S & J Tin Snips x1 -XXXXX,"AUTOMOTIVE PARTS, ACCESSORIES STORES",E&T
REDACTED,-9.25,12/12/2014,GRO HM PASSPORT OFFICE,Birth Certificate refund 086VH920/38,GOVERNMENT SERVICES-NOT ELSEWHERE CLASSIFIED,CYP
REDACTED,52.4,12/12/2014,EC MAINLINE CO INT,"Cllr XXXXX, Barrow-B'ham, SDP wksp, 6 Jan",PASSENGER RAILWAYS,E&T
REDACTED,105.95,12/12/2014,BRITISH STANDARDS,XXXXX 22301 for IBC,BUSINESS SERVICES-NOT ELSEWHERE CLASSIFIED,PUBLIC PROTECTION
REDACTED,-9.99,12/12/2014,PAYPAL  RAHEEL FAIZ,Refund for previous faulty purchase.,CAMERA AND PHOTOGRAPHIC SUPPLY STORES,CYP
REDACTED,120.15,12/12/2014,ARGOS RETAIL GROUP,Single Bed Frame & Mattress for family + delivery,DISCOUNT STORES,CYP
REDACTED,5,15/12/2014,GOV.UK/DART-CHARGE,Dartford Crossing (XXXXX to Gent for Safe Ice),"BRIDGE AND ROAD FEES, TOLLS",E&T
REDACTED,3.58,15/12/2014,FASTHOSTS INTERNET,Invest in Suffolk Web Site,COMPUTER NETWORK/INFORMATION SERVICES,E&T
REDACTED,125.47,15/12/2014,TESCO STORE 2877,Looked after children - Provisions,"GROCERY STORES, SUPERMARKETS",CYP
REDACTED,4,15/12/2014,ASDA SUPERSTORE,64LTR Plastic box for Wattisham storage,"GROCERY STORES, SUPERMARKETS",FIRE
REDACTED,1.52,15/12/2014,FACEBOOK N5YV47AVD2,rec advert for Home First Practitioners,ADVERTISING SERVICES,RESOURCE MANAGEMENT
REDACTED,28.47,15/12/2014,FACEBOOK SRQB37EVD2,rec advert for Home First Practitioners,ADVERTISING SERVICES,RESOURCE MANAGEMENT
REDACTED,54.99,15/12/2014,ARGOS LTD,Drill,DISCOUNT STORES,CYP
REDACTED,16.12,15/12/2014,TOOLSTATION LTD,Materials for F.I.D.U Wattasham,HARDWARE STORES,FIRE
REDACTED,11.96,15/12/2014,SP SERVICES UK LTD,Medical Equipment for Looked After Children,"HEALTH PRACTITIONERS, MEDICAL SRVCS-NOT ELSEWHERE",CYP
REDACTED,12.5,15/12/2014,WEST END DRY CLEANERS,Dry cleaning for 2 pairs of undress trousers,DRY CLEANERS,FIRE
REDACTED,8.84,15/12/2014,Amazon  Mktplce EU-UK,Redaction Tape for legal paperwork - XXXXX.,BOOK STORES,PUBLIC PROTECTION
REDACTED,29.19,15/12/2014,ARGOS RETAIL GROUP,Looked after Children - Christmas Presents,DISCOUNT STORES,CYP
REDACTED,68,15/12/2014,KENT BLAXILL AND C,"Glass for F.I.D.U at training center, Wattisham.","BUILDING MATERIALS, LUMBER STORES",FIRE
REDACTED,5,15/12/2014,SL-NCP-ADAPTIS ECOM GA,Parking for NTSB meeting,AUTOMOBILE PARKING LOTS AND GARAGES,PUBLIC PROTECTION
REDACTED,12.48,15/12/2014,WWW.PAGERS.CO.UK,New pager holder,TELECOMMUNICATION EQUIPMENT INCL TELEPHONE SALES,PUBLIC PROTECTION
REDACTED,145.5,15/12/2014,TVLICENSING.CO.UK,Annual Tv Licence for Childrens Home,"CONSULTING, MANAGEMENT, AND PUBLIC RELATIONS SVCS",CYP
REDACTED,26.6,15/12/2014,LEGO,resources for direct work with children C0-11 912/,"GAME, TOY, AND HOBBY SHOPS",CYP
REDACTED,27.53,16/12/2014,FACEBOOK 5ZD727WUD2,rec advert Home First Practitioners,ADVERTISING SERVICES,RESOURCE MANAGEMENT
REDACTED,33.72,16/12/2014,SAINSBURYS 0411,food and drink for sessions,"GROCERY STORES, SUPERMARKETS",CYP
REDACTED,2.95,16/12/2014,GUMTREE COM,Advert for Home First Practitioners (web link char,ADVERTISING SERVICES,RESOURCE MANAGEMENT
REDACTED,33,16/12/2014,EC MAINLINE CO INT,"XXXXX, H'wth-L'don, RWM event 12 Feb",PASSENGER RAILWAYS,E&T
REDACTED,33.5,16/12/2014,IPSWICH ENTERTAINMENT,Regent Tickets for XXXXX,GOVERNMENT SERVICES-NOT ELSEWHERE CLASSIFIED,CYP
REDACTED,31.41,16/12/2014,W M MORRISON PLC,"Food and equipment for Felixstowe F, Training day",SERVICE STATIONS WITH OR WITHOUT ANCILLARY SERVICE,CYP
REDACTED,105.96,16/12/2014,WWW.BRITISHBINS.CO.UK,Two large red wheelie bins for salt at Wattisham,HARDWARE EQUIPMENT AND SUPPLIES,FIRE
REDACTED,40,16/12/2014,DSA THEORY TEST,Driver theory test booked by XXXXX,GOVERNMENT SERVICES-NOT ELSEWHERE CLASSIFIED,FIRE
REDACTED,2,16/12/2014,COMPANIES HOUSE,ONLINE CHECK OF COMPANIES HOUSE (40313),GOVERNMENT SERVICES-NOT ELSEWHERE CLASSIFIED,RESOURCE MANAGEMENT
REDACTED,2.8,16/12/2014,POST OFFICE COUNTER,Postage,POSTAL SERVICES-GOVERNMENT ONLY,E&T
REDACTED,31.53,16/12/2014,ASDA  STORES 4218,Snack for sessions/Xmas party food,"GROCERY STORES, SUPERMARKETS",CYP
REDACTED,200,16/12/2014,ARGOS LTD,voucher to purchase laptop for XXXXX WFIF109,DISCOUNT STORES,CYP
REDACTED,66,16/12/2014,BYTEMARK HOSTING,cyp hosting,COMPUTER SOFTWARE STORES,RESOURCE MANAGEMENT
REDACTED,2.5,16/12/2014,WILKO RETAIL LIMIT,Centre  Cleaning supplies,HOUSEHOLD APPLIANCE STORES,CYP
REDACTED,57.35,16/12/2014,ASDA HOME SHOPPING,Food for Groups N-D2014 R5,"GROCERY STORES, SUPERMARKETS",CYP
REDACTED,14.33,16/12/2014,SAINSBURYS 2163,Thank you gift to Parent volunteers,"GROCERY STORES, SUPERMARKETS",CYP
REDACTED,10,16/12/2014,TESCO STORE 2877,Operational mobile phone charging lead,"GROCERY STORES, SUPERMARKETS",FIRE
REDACTED,8.99,16/12/2014,EASILY LTD,561/14 - suffolksourcing.co.uk domain name,"CONSULTING, MANAGEMENT, AND PUBLIC RELATIONS SVCS",RESOURCE MANAGEMENT
REDACTED,106.67,17/12/2014,Amazon  Mktplce EU-UK,Video Camera for SGO Team,BOOK STORES,CYP
REDACTED,30,17/12/2014,TESCO STORE 2941,Vouchers for Family,"GROCERY STORES, SUPERMARKETS",CYP
REDACTED,49.53,17/12/2014,B&Q,Paint for Wickhambrook Fire station.,"BUILDING MATERIALS, LUMBER STORES",FIRE
REDACTED,39,17/12/2014,COMPANIES HOUSE,ONLINE CHECK OF COMPANIES HOUSE (37029),GOVERNMENT SERVICES-NOT ELSEWHERE CLASSIFIED,RESOURCE MANAGEMENT
REDACTED,16.63,17/12/2014,P&R LOCKSMITH SERVICES,Shoe repair,MISCELLANEOUS REPAIR SHOPS AND RELATED SERVICES,FIRE
REDACTED,435.7,17/12/2014,ELECTRIC CENTRE,"SWA cable, distribution board, MCBS, for XXXXX",ELECTRICAL PARTS AND EQUIPMENT,FIRE
REDACTED,45.98,17/12/2014,SPORTSDIRECT.COM,Looked after children - clothing,SPORTING GOODS STORES,CYP
REDACTED,18.42,17/12/2014,GREENGAGE,Looked after children - Moving on dinner,"BAR,LOUNGE,DISCO,NIGHTCLUB,TAVERN-ALCOHOLIC DRINKS",CYP
REDACTED,8.6,17/12/2014,WATER LANE LEISURE CEN,Booking for leisure centre,RECREATION SERVICES (NOT ELSEWHERE CLASSIFIED),CYP
REDACTED,148.9,17/12/2014,THE PARTY STARTERS,Entertainment for XXXXX New Year Party,"BANDS, ORCHESTRAS, & MISC ENTRTNRS-NOT ELSWHR CLAS",CYP
REDACTED,170,17/12/2014,INTELLECTUAL PROP. OFC,Application to register trade mark for MyGo,GOVERNMENT SERVICES-NOT ELSEWHERE CLASSIFIED,E&T
REDACTED,5,17/12/2014,SL-NCP-ADAPTIS ECOM GA,parking for meeting Manchester by train,AUTOMOBILE PARKING LOTS AND GARAGES,PUBLIC PROTECTION
REDACTED,46.05,17/12/2014,TESCO STORE 2941,Hamper for Family,"GROCERY STORES, SUPERMARKETS",CYP
REDACTED,24.95,17/12/2014,LITTLE CHEF BLACK CAT,Subsistance / lunch for three. Tilt Test Millbrook,"EATING PLACES, RESTAURANTS",FIRE
REDACTED,31.8,17/12/2014,POST OFFICE COUNTER,postage stamps,POSTAL SERVICES-GOVERNMENT ONLY,CYP
REDACTED,18.6,17/12/2014,SPAR FELIXSTOWE,Food for targeted Youth Work training event,"GROCERY STORES, SUPERMARKETS",CYP
REDACTED,20,17/12/2014,SUFFOLK COUNTY COUNCIL,Birth certificates,GOVERNMENT SERVICES-NOT ELSEWHERE CLASSIFIED,CYP
REDACTED,26.88,18/12/2014,Trainline.com,"XXXXX, E'boro-Penrith, 13 Jan IWM TOG",PASSENGER RAILWAYS,E&T
REDACTED,189.95,18/12/2014,LINKEDIN-171 3965413,"EFMS Landscape designer recrt advt. 
efms invioce",DIRECT MARKETING-CONTINUITY/SUBSCRIPTION MERCHANTS,RESOURCE MANAGEMENT
REDACTED,39.99,18/12/2014,BOUQETS OF NEWMARK,Flowers sent following bereavement XXXXX,FLORISTS,CYP
REDACTED,2.8,18/12/2014,POST OFFICE COUNTER,Postage :- Return to Hunter Apparel,POSTAL SERVICES-GOVERNMENT ONLY,FIRE
REDACTED,19.49,18/12/2014,STAPLES UK,2015 Filofax insert,"OFFICE, SCHOOL SUPPLY, AND STATIONERY STORES",FIRE
REDACTED,50.53,18/12/2014,TESCO STORE 2848,Christmas party children,"GROCERY STORES, SUPERMARKETS",CYP
REDACTED,27.27,18/12/2014,TYPEKITBYADOBE,Adobe typekit annual sub,OTHER SERVICES (NOT ELSEWHERE CLASSIFIED),RESOURCE MANAGEMENT
REDACTED,5.7,18/12/2014,WATTISHAM SVS SHOP,Milk,CATERERS,FIRE
REDACTED,-14.56,18/12/2014,B & Q,refund for paint not used at wickhambrook,"BUILDING MATERIALS, LUMBER STORES",FIRE
REDACTED,189.95,18/12/2014,LINKEDIN-171 4237153,EFMS Landscape tec assi recrt advt. efms invioce,DIRECT MARKETING-CONTINUITY/SUBSCRIPTION MERCHANTS,RESOURCE MANAGEMENT
REDACTED,80.6,18/12/2014,ELECTRIC CENTRE,Materials for Anson road,ELECTRICAL PARTS AND EQUIPMENT,FIRE
REDACTED,4.62,18/12/2014,W M MORRISON,Birthday cards,"GROCERY STORES, SUPERMARKETS",CYP
REDACTED,41.93,18/12/2014,ARGOS RETAIL GROUP,Stairgate for Family,DISCOUNT STORES,CYP
REDACTED,34.5,18/12/2014,ELECTRIC CENTRE,tools required for XXXXX,ELECTRICAL PARTS AND EQUIPMENT,FIRE
REDACTED,353.33,18/12/2014,TURNERS(IPSWICH),service FDS cars EA13 ONP & EO63 SDV,AUTOMOTIVE SERVICE SHOPS,FIRE
REDACTED,29.66,18/12/2014,FACEBOOK UFH357JVD2,Home first practioner advert,ADVERTISING SERVICES,RESOURCE MANAGEMENT
REDACTED,75.79,19/12/2014,PAYPAL  REALLYUSEFU,Strong Boxes x 2 4 Ltrs & 35 Ltrs - XXXXX,MISCELLANEOUS HOUSE FURNISHING SPECIALTY SHOPS,E&T
REDACTED,78.75,19/12/2014,STATIONERY OFFICE BOOK,Books from TSO for XXXXX,DIRECT MARKETING-CATALOG MERCHANTS,CYP
REDACTED,3.34,19/12/2014,TESCO STORE 3240,Refreshments,"GROCERY STORES, SUPERMARKETS",FIRE
REDACTED,37.86,19/12/2014,W M MORRISON,Foster carers lunch,"GROCERY STORES, SUPERMARKETS",CYP
REDACTED,90.83,19/12/2014,HALFORDS 0701,Replacement for faulty and out of date sat nav,BICYCLE SHOPS-SALES AND SERVICE,FIRE
REDACTED,-79,19/12/2014,Amazon Prime,Credit ref Amazon Prime ordered in error,DIRECT MARKETING-CONTINUITY/SUBSCRIPTION MERCHANTS,CYP
REDACTED,64.17,19/12/2014,TESCO STORE 2877,Refreshments,"GROCERY STORES, SUPERMARKETS",FIRE
REDACTED,-32.05,19/12/2014,PAYPAL  REALLYUSEFU,Cancelled Strong Box x 1 -XXXXX,MISCELLANEOUS HOUSE FURNISHING SPECIALTY SHOPS,E&T
REDACTED,54.43,19/12/2014,EASTERN HOSE & HYDRAUL,New hose for princes street pressure washer,INDUSTRIAL SUPPLIES NOT ELSEWHERE CLASSIFIED,FIRE
REDACTED,108.25,19/12/2014,WWW.SUMMERFIELDBOOKS.C,Book purchase,BOOK STORES,E&T
REDACTED,73.94,19/12/2014,ARGOS RETAIL GROUP,Furniture and Equipment grant XXXXX.,DISCOUNT STORES,ACS
REDACTED,62.95,19/12/2014,WWW.BUYAPARCEL.COM,Bowsaw Blade x 20 - XXXXX,"BUILDING MATERIALS, LUMBER STORES",E&T
REDACTED,88,19/12/2014,ELECTRIC CENTRE,Panel heaters for Wattisham training center,ELECTRICAL PARTS AND EQUIPMENT,FIRE
REDACTED,22.49,19/12/2014,Amazon  Mktplce EU-UK,Magic Erasable Whiteboard for XXXXX team,BOOK STORES,CYP
REDACTED,13.23,19/12/2014,PAYPAL  MEETOMATICL,Subscription to meeting co-ordination site,ADVERTISING SERVICES,PUBLIC PROTECTION
REDACTED,32.05,19/12/2014,PAYPAL  REALLYUSEFU,Strong White Box x 1 - XXXXX,MISCELLANEOUS HOUSE FURNISHING SPECIALTY SHOPS,E&T
REDACTED,34.6,19/12/2014,Amazon EU,Accuratus mini keyboard CHIS team,DIRECT MARKETING-OTHER DIRECT MARKETERS/NOT ELSEW.,CYP
REDACTED,145.5,19/12/2014,TVLICENSING.CO.UK,TV Licence for Looked After Children Building,"CONSULTING, MANAGEMENT, AND PUBLIC RELATIONS SVCS",CYP
REDACTED,9.7,22/12/2014,Amazon  Mktplce EU-UK,small desk fan for XXXXX,BOOK STORES,PUBLIC PROTECTION
REDACTED,34.01,22/12/2014,WAREHOUSE CLEARANC,Storage Boxes for Toy Library & Playroom/crafts,"EQUIP, FURNITURE, HOME FURNSHNGS STRS (EXCPT APPL)",CYP
REDACTED,53.94,22/12/2014,Amazon EU,Finding a Family for Tommy Book x4,DIRECT MARKETING-OTHER DIRECT MARKETERS/NOT ELSEW.,CYP
REDACTED,15,22/12/2014,SUPERDRUG STORES PLC,Santa gifts for Christmas party,"DRUG STORES, PHARMACIES",CYP
REDACTED,34.75,22/12/2014,WWW.THERANGE.CO.UK,Enamel Mugs x 20 - XXXXX,MISCELLANEOUS GENERAL MERCHANDISE,E&T
REDACTED,33.84,22/12/2014,Amazon EU,The Family Book x6 and Its Okay to be Different x6,DIRECT MARKETING-OTHER DIRECT MARKETERS/NOT ELSEW.,CYP
REDACTED,14.13,22/12/2014,Amazon  Mktplce EU-UK,replacement battery for team digital camera,BOOK STORES,PUBLIC PROTECTION
REDACTED,80.65,22/12/2014,B & Q CALL CENTRE,Paint for home of family in need SFF,"BUILDING MATERIALS, LUMBER STORES",CYP
REDACTED,74.37,22/12/2014,DEEPBLUEFIGHTWEAR.,Dry Suit Hangers for Princes St,SPORTING GOODS STORES,FIRE
REDACTED,37.67,22/12/2014,Amazon  Mktplce EU-UK,Looked After Children Xmas present,BOOK STORES,CYP
REDACTED,18.25,22/12/2014,WWW.TOOLED-UP.COM,Digital Caliper for finds work,HARDWARE STORES,E&T
REDACTED,145.99,22/12/2014,TESCO STORE 2877,Looked after Children - Provisions,"GROCERY STORES, SUPERMARKETS",CYP
REDACTED,18.25,22/12/2014,B&Q,Post mix for new sign at Ixworth,"BUILDING MATERIALS, LUMBER STORES",FIRE
REDACTED,11.1,22/12/2014,WATTISHAM SVS SHOP,Extra meals for delegates,CATERERS,FIRE
REDACTED,8.5,23/12/2014,TESCO STORES-2166,SbS: Infant formula for family. D-J2015 R1,"GROCERY STORES, SUPERMARKETS",CYP
REDACTED,20,23/12/2014,SUFFOLK SKI CENTRE LTD,Looked After Children - Ringo Activity Deposit,"EATING PLACES, RESTAURANTS",CYP
REDACTED,56.44,23/12/2014,TOBY CARVERY,XXXXX Business Lunch,"EATING PLACES, RESTAURANTS",FIRE
REDACTED,5,23/12/2014,SL-NCP-ADAPTIS ECOM GA,Parking for meeting Birmingham with HMRC,AUTOMOBILE PARKING LOTS AND GARAGES,PUBLIC PROTECTION
REDACTED,20.42,23/12/2014,SACAT MARKS & SPENCER,Looked after Children - children's meting,"GROCERY STORES, SUPERMARKETS",CYP
REDACTED,65.5,23/12/2014,WWW.BOOKINGS.YARMOUTHH,Foster children's Christmas outing,"BANDS, ORCHESTRAS, & MISC ENTRTNRS-NOT ELSWHR CLAS",CYP
REDACTED,93,24/12/2014,ELECTRIC CENTRE,Plugs and sockets for changing leads for new vehic,ELECTRICAL PARTS AND EQUIPMENT,FIRE
REDACTED,11.3,24/12/2014,TOOLSTATION LTD,floor paint for workshops,HARDWARE STORES,FIRE
REDACTED,14.34,24/12/2014,FACEBOOK HMZ467JVD2,Home first practioner advert,ADVERTISING SERVICES,RESOURCE MANAGEMENT
REDACTED,111,24/12/2014,DSA,Driver training bookings by XXXXX,GOVERNMENT SERVICES-NOT ELSEWHERE CLASSIFIED,FIRE
REDACTED,-12,24/12/2014,DSA THEORY TEST,Driver training bookings by XXXXX,GOVERNMENT SERVICES-NOT ELSEWHERE CLASSIFIED,FIRE
REDACTED,-28,24/12/2014,DSA THEORY TEST,Driver training booking by XXXXX,GOVERNMENT SERVICES-NOT ELSEWHERE CLASSIFIED,FIRE
REDACTED,111.65,24/12/2014,IPSWICH BOROUGH CO,LOCAL SEARCH FEE (CRM 8047),GOVERNMENT SERVICES-NOT ELSEWHERE CLASSIFIED,RESOURCE MANAGEMENT
REDACTED,25.6,24/12/2014,Amazon  Mktplce EU-UK,Looked after Children - equip purchase - hooverpar,BOOK STORES,CYP
REDACTED,45.42,24/12/2014,TESCO STORES 5123,Provisions for Christmas,"GROCERY STORES, SUPERMARKETS",CYP
REDACTED,-216.65,24/12/2014,SCREWFIX DIRECT,refund for door holders XXXXX,"BUILDING MATERIALS, LUMBER STORES",FIRE
REDACTED,93.64,24/12/2014,NELSON POTTER LTD,Hazel panels for kitchen repairs. ARCH TMS 001,"BUILDING MATERIALS, LUMBER STORES",E&T
REDACTED,-111.65,24/12/2014,IPSWICH BC,REFUND OF LOCAL SEARCH FEE (CRM 8047),OTHER SERVICES (NOT ELSEWHERE CLASSIFIED),RESOURCE MANAGEMENT
REDACTED,176.48,26/12/2014,ARGOS DIRECT,Bed and mattress for XXXXX,DISCOUNT STORES,CYP
REDACTED,54.48,26/12/2014,Amazon  Mktplce EU-UK,We Belong Together Book Todd Parr x6,BOOK STORES,CYP
REDACTED,14,26/12/2014,SUFFOLK COUNTY COUNCIL,birth certificate XXXXX 086VH989/1,GOVERNMENT SERVICES-NOT ELSEWHERE CLASSIFIED,CYP
REDACTED,21,26/12/2014,SUFFOLK COUNTY COUNCIL,Birth certificate XXXXX 086VH988/2,GOVERNMENT SERVICES-NOT ELSEWHERE CLASSIFIED,CYP
REDACTED,185.43,26/12/2014,ARGOS DIRECT,Bed and mattress for RS + delivery charge,DISCOUNT STORES,CYP
REDACTED,66.67,26/12/2014,MERCURE SHEFFIELD ST P,"Room for FNP conference,Sheffield","LODGING-HOTELS,MOTELS,RESORTS-NOT CLASSIFIED",CYP
REDACTED,50,29/12/2014,Amazon  Mktplce EU-UK,Looked after Children - equip pur - crockery,BOOK STORES,CYP
REDACTED,15.38,29/12/2014,Amazon  Mktplce EU-UK,Looked After Children - Duvet,BOOK STORES,CYP
REDACTED,15.54,29/12/2014,Amazon  Mktplce EU-UK,Keysafe,BOOK STORES,E&T
REDACTED,1.79,29/12/2014,FASTHOSTS INTERNET,Website for Invest in Suffolk,COMPUTER NETWORK/INFORMATION SERVICES,E&T
REDACTED,106.97,29/12/2014,TESCO STORE 2877,Looked after Children - Provisions,"GROCERY STORES, SUPERMARKETS",CYP
REDACTED,116.57,30/12/2014,RIVERBANK RESTAURANT L,Chinese Buffet Meal for 7 children and 5 adults,"EATING PLACES, RESTAURANTS",CYP
REDACTED,52.98,30/12/2014,TESCO STORES 5123,General Provisions,"GROCERY STORES, SUPERMARKETS",CYP
REDACTED,24.98,31/12/2014,Amazon  Mktplce EU-UK,Replacement Toy paid for by Childrens Pocket Money,BOOK STORES,CYP
REDACTED,83.75,31/12/2014,WWW.BOOKINGS.YARMOUTHH,"Looked after Children - Activity DL,MM,LT,AC,LS","BANDS, ORCHESTRAS, & MISC ENTRTNRS-NOT ELSWHR CLAS",CYP
REDACTED,41.82,31/12/2014,SPORTSDIRECT.COM,Looked After Children - Trainers,SPORTING GOODS STORES,CYP
REDACTED,35,31/12/2014,WWW.CIPS.ORG,562/14 - Balance of exam for CJ incl. 2% card fee,"ORGANIZATIONS, MEMBERSHIP-NOT ELSEWHERE CLASSIFIED",RESOURCE MANAGEMENT
